Cogmind - Beta 17 @@@ ROGUE MODE // 2026.07.06 @ 23:10:30 Player: Dwarfinator Result: Establishing 0b11! Performance ------------- Evolutions (9) 4500 Regions Visited (34) 6800 Robots Destroyed (559) 2795 Value Destroyed (30987) 30987 Prototype IDs (387) 7740 Alien Tech Used (0) 0 Bonus (55814) 55814 TOTAL SCORE: 108636 Bonus ------- High Alert Combat Kills 6713 Follower Combat Kills 3798 Prayed to X0-1V1 5000 Major X0-1V1 Interference 16000 Subatomizer Sterilization 3000 Entered Garrisons 1200 Entered DSFs 1000 Network Hubs Disabled 200 Acquired ECA 300 Met Warlord at Base 500 MAIN.C Attacked Warlord 500 Warlord Defense Kills 54 Met R17 at Cetus 500 Met R17 at Research 2000 Met Warlord at Research 2000 Destroyed MAIN.C Guards 500 Met MAIN.C 5000 Destroyed MAIN.C Shell 5000 Destroyed MAIN.C 10000 Met Warlord at Command 2000 Win 3000 Friendly Fire -12451 Cogmind --------- Core Integrity 1525/1700 Matter 760/800 Energy 284/800 System Corruption 17% Temperature Cool (0) Movement Rolling (210) Ox6 Location 0b11 Command Parts ------- > --- POWER (5) -------- Improved Fusion Compressor (fused) Reinforced Quantum Reactor (fused) Reinforced Quantum Reactor > --- PROPULSION (2) --- Centrium Wheel High-density Centrium Wheel > --- UTILITY (15) ----- Advanced Cooling System Advanced Cooling System Huge Storage Unit Active Sensor Suite (fused) Improved Particle Accelerator (fused) Advanced Kinecellerator (fused) Advanced Kinecellerator (fused) Experimental Utility Shielding (fused) Centrium Heavy Armor Plating Improved Hardlight Generator (fused) Self-contained Transmogrifier X0-1V1's Piety Tracker > --- WEAPON (4) ------- EMDS Multirail Gamma Bomb Array (fused) > --- INVENTORY (25) --- Advanced Heavy Siege Treads Armored Wheel Advanced Energy Well (500) Matter Compressor (250) Advanced Point Defense System Long-range Tractor Beam Potential Cannon Hardcell Cannon Linear Accelerator Enhanced Gamma Bomb Array Hellfire Missile Launcher Peak State ------------ > --- POWER ------------ Improved Fusion Compressor Light Quantum Reactor Singularity Reactor > --- PROPULSION ------- Advanced Heavy Siege Treads > --- UTILITY ---------- Advanced Heat Sink Huge Storage Unit Advanced Gravity Neutralizer Spectral Analyzer Active Sensor Suite Improved Particle Accelerator Centrium Heavy Armor Plating Makeshift Ablative Armor Advanced Remote Force Field Advanced Point Defense System Self-contained Transmogrifier X0-1V1's Piety Tracker > --- WEAPON ----------- Potential Cannon Nanosword Nanosword > --- INVENTORY -------- Reinforced Quantum Reactor Centrium Wheel High-density Centrium Wheel Advanced Coolant Injector Advanced Energy Well Matter Compressor Centrium Heavy Armor Plating Advanced Force Field Long-range Tractor Beam EMDS Multirail Hardcell Cannon Hardcell Cannon Hardcell Cannon Linear Accelerator Enhanced Gamma Bomb Array Hellfire Missile Launcher [Rating: 238] Favorites ----------- Power Hybrid Antimatter Reactor Engine Improved Ion Engine Power Core Fission Core Reactor Hybrid Antimatter Reactor Propulsion Armored Wheel Treads Light Treads Leg VSS Leg Wheel Armored Wheel Hover Unit Aerolev Unit Flight Unit VTOL Module Utility Huge Storage Unit Device Self-contained Transmogrifier Storage Huge Storage Unit Processor Advanced Targeting Computer Hackware System Shield Protection Makeshift Ablative Armor Weapon Assault Rifle Energy Gun Precision Shock Rifle Energy Cannon Advanced Plasma Cannon Ballistic Gun Assault Rifle Ballistic Cannon Light Antimatter Cannon Launcher Enhanced Gamma Bomb Array Special Weapon Multitool Impact Weapon Powered Hammer Slashing Weapon Nanosword Piercing Weapon Enhanced Force Lance Special Melee Weapon Datajack Build | -11 -10 -10 -10 -8 -8 -8 -8 -8 -7 -7 -7 -7 -6 -6 -6 -6 -6 -6 -5 -5 -5 -5 -4 -4 -4 -4 -4 -4 -4 -3 -3 -2 -1 -1 ------- Run | Yrd Mat Min Sub Mat Gar Mat Gar Mat Fac Gar Fac DSF Fac Gar Fac Gar Fac DSF Fac Upp Upp War Pro Fac Ext Cet Arc Hub Gar Res Tes Res Acc Com Slots Evolved 18 | . . . . 4 . . . . 2 . . . 2 . . . . . 2 . . . . 2 . . . . . 2 . 2 2 . Power 3 | . . . . . . . . . . . . . . . . . . . 1 . . . . . . . . . . . . 1 1 . Propulsion 1 | . . . . . . . . . 1 . . . . . . . . . . . . . . . . . . . . . . . . . Utility 14 | . . . . 4 . . . . 1 . . . 2 . . . . . 1 . . . . 2 . . . . . 2 . 1 1 . Weapon . | . . . . . . . . . . . . . . . . . . . . . . . . . . . . . . . . . . . Parts Attached 420 | 7 4 8 25 13 14 5 9 25 21 14 . 7 20 7 12 20 . 2 18 3 2 15 7 11 13 7 8 7 28 21 24 18 4 21 Power 50 | 1 . 1 4 . 1 . 1 3 2 1 . 2 2 . . 3 . . 3 . . 1 2 2 3 1 1 1 6 1 3 3 1 1 Engine 10 | 1 . 1 3 . 1 . . . 2 . . . 1 . . . . . 1 . . . . . . . . . . . . . . . Core 14 | . . . 1 . . . 1 3 . . . 2 1 . . . . . 2 . . . 2 . 1 . 1 . . . . . . . Reactor 26 | . . . . . . . . . . 1 . . . . . 3 . . . . . 1 . 2 2 1 . 1 6 1 3 3 1 1 Propulsion 56 | 2 . 1 4 1 1 1 1 3 5 1 . 1 3 1 3 2 . . 4 . 1 3 1 . 2 1 . . 4 3 1 2 . 4 Treads 6 | 2 . 1 1 . . . . . . . . . . . . . . . . . . . . . . . . . 1 . . . . 1 Leg 1 | . . . . . . . . . . . . . . . . . . . . . . 1 . . . . . . . . . . . . Wheel 49 | . . . 3 1 1 1 1 3 5 1 . 1 3 1 3 2 . . 4 . 1 2 1 . 2 1 . . 3 3 1 2 . 3 Hover . | . . . . . . . . . . . . . . . . . . . . . . . . . . . . . . . . . . . Flight . | . . . . . . . . . . . . . . . . . . . . . . . . . . . . . . . . . . . Utility 195 | 2 2 3 3 7 6 3 4 12 10 5 . 2 11 4 7 9 . 1 10 3 . 3 3 8 7 3 4 4 12 11 16 9 3 8 Device 106 | 1 1 2 1 2 4 2 1 3 4 3 . 2 4 4 2 4 . . 5 3 . 2 2 4 5 1 3 2 9 9 6 4 3 8 Storage 7 | 1 1 . 1 . . . . 1 . . . . . . 1 . . . . . . . . . . . . . . . 2 . . . Processor 28 | . . . . 1 1 . 1 3 1 . . . 4 . 2 3 . . . . . . 1 2 . 1 . . 2 1 1 4 . . Hackware 10 | . . . . 1 . . . . 2 . . . 1 . 2 . . . 1 . . . . 1 . . . 2 . . . . . . Protection 44 | . . 1 1 3 1 1 2 5 3 2 . . 2 . . 2 . 1 4 . . 1 . 1 2 1 1 . 1 1 7 1 . . Artifact . | . . . . . . . . . . . . . . . . . . . . . . . . . . . . . . . . . . . Weapon 119 | 2 2 3 14 5 6 1 3 7 4 7 . 2 4 2 2 6 . 1 1 . 1 8 1 1 1 2 3 2 6 6 4 4 . 8 Energy Gun 21 | . . 1 5 2 . . . 2 . . . . . . . . . . . . . 4 1 . . 1 2 . . 1 1 1 . . Energy Cannon 24 | . 1 . 3 . . . . 3 1 2 . . 2 . . 1 . . . . . . . . . . . 1 3 1 2 1 . 3 Ballistic Gun 23 | 2 . 2 2 1 . 1 1 . . 2 . . . . . 3 . . . . . 1 . 1 1 . 1 . 1 2 1 . . 1 Ballistic Cannon 14 | . . . 1 1 . . . 1 1 . . 2 1 . . 1 . 1 . . . . . . . . . . . . . 1 . 4 Launcher 13 | . . . 1 . 2 . 2 . . 1 . . . 2 1 . . . . . 1 1 . . . 1 . . . . . 1 . . Special Weapon 6 | . 1 . . . . . . . 1 1 . . . . . . . . 1 . . 1 . . . . . 1 . . . . . . Impact Weapon 4 | . . . 2 . 1 . . . . 1 . . . . . . . . . . . . . . . . . . . . . . . . Slashing Weapon 11 | . . . . 1 2 . . 1 1 . . . 1 . 1 . . . . . . . . . . . . . 2 2 . . . . Piercing Weapon . | . . . . . . . . . . . . . . . . . . . . . . . . . . . . . . . . . . . Special Melee Weapon 3 | . . . . . 1 . . . . . . . . . . 1 . . . . . 1 . . . . . . . . . . . . Unidentified Prototypes 37 | . . 1 . 2 . . . . 1 . . 1 . . 1 7 . . . . . 5 . . 1 1 . . 2 6 6 3 . . Corrupted Parts 3 | . . . . . . . . . . . . . . . . . . . . . . . 1 . . 1 . . 1 . . . . . System Corruption 16 | . . . . . . . . . . . . . . . . . . . . . . . 5 . . 7 . . 4 . . . . . Parts Lost 60 | . 1 1 . . 4 1 4 11 . 1 . . 1 1 . 3 . . 5 . . 2 2 . 6 . . 3 4 1 2 . . 7 Power 12 | . . . . . . . 1 3 . . . . 1 . . . . . 2 . . . 1 . 1 . . 1 1 . . . . 1 Propulsion 11 | . . . . . 1 . . 2 . . . . . 1 . . . . 2 . . 1 . . 1 . . 1 1 . 1 . . . Utility 24 | . . . . . 3 . 2 2 . . . . . . . 3 . . 1 . . 1 1 . 3 . . 1 1 . 1 . . 5 Weapon 13 | . 1 1 . . . 1 1 4 . 1 . . . . . . . . . . . . . . 1 . . . 1 1 . . . 1 Highest Loss Streak 4 | . 1 1 . . 2 1 3 3 . 1 . . 1 1 . 1 . . 4 . . 2 2 . 3 . . 1 1 1 1 . . 4 To Critical Strikes . | . . . . . . . . . . . . . . . . . . . . . . . . . . . . . . . . . . . Average Backups 19 | 3 11 14 22 21 21 20 20 20 20 20 20 18 18 17 19 19 21 19 21 21 21 21 20 22 21 21 22 21 19 20 20 19 19 17 Power . | . . . 1 . . . . . . . . . . . . . . . . . . . . . . . . . 1 . . . . . Propulsion 3 | 1 3 6 7 3 2 3 7 5 2 2 2 2 2 2 2 1 1 1 2 2 2 1 . 3 4 3 4 3 1 2 3 3 3 2 Utility 7 | . 2 2 4 2 5 5 4 5 9 8 9 7 6 6 7 8 10 7 9 9 9 8 7 8 6 6 6 7 8 9 9 10 11 7 Weapon 6 | 1 4 5 6 13 11 9 5 6 6 6 7 6 7 6 6 7 8 8 7 6 6 7 7 6 5 7 8 7 6 7 5 4 5 7 Tool/Special . | . . . . . . . . . . . . . . . . . . . . . . . . . . . . . . . . . . . Unused Backups 130 | . 12 3 7 6 5 1 2 8 20 7 . 9 2 . 4 2 . 1 3 . . 5 . 2 4 5 4 2 6 4 3 1 . 2 Power 12 | . 1 . . 1 . . . 3 1 1 . . . . . . . . . . . 1 . . . . . . 1 3 . . . . Propulsion 36 | . 4 2 4 2 . 1 . 1 8 1 . 1 1 . 3 . . . . . . . . . 1 . 2 . 2 1 1 1 . . Utility 41 | . 3 1 1 . . . 1 . 8 . . 4 . . 1 2 . 1 3 . . 3 . 2 2 3 . 2 1 . 2 . . 1 Weapon 40 | . 4 . 2 3 5 . 1 4 2 5 . 4 1 . . . . . . . . 1 . . 1 2 2 . 2 . . . . 1 Tool/Special 1 | . . . . . . . . . 1 . . . . . . . . . . . . . . . . . . . . . . . . . Average Slot Usage (%) 90 | . 99 99 95 88 94 81 89 95 94 92 100 89 84 85 90 84 87 94 74 77 83 92 93 95 97 93 99 93 94 87 88 91 80 76 Engine 4 | . 14 12 15 5 7 8 8 4 11 7 7 5 4 2 5 2 . . . . . . . . . . . . . . . . . . Core 3 | . . . . 10 5 8 4 8 . . . 3 4 9 6 2 . . 1 9 9 2 4 5 7 6 7 3 4 . . . . . Reactor 5 | . . . . . 2 . . . . 6 7 6 2 . . 7 12 12 8 6 6 12 6 9 7 6 6 10 10 12 12 15 13 10 Treads 3 | . 28 25 15 . 4 2 . . . . . . . . . . . . . . . . . . . 1 . . 1 . . . . . Wheel 8 | . . . 10 8 3 5 8 7 13 11 14 12 12 9 11 11 12 12 10 7 10 11 10 10 9 8 10 10 7 7 8 7 7 6 Device 24 | . 14 11 1 12 33 16 21 20 21 15 28 27 28 16 17 18 18 27 26 23 28 42 38 27 32 30 35 34 36 35 31 30 33 29 Storage 7 | . 14 12 11 8 8 8 10 16 7 7 7 6 6 6 8 6 6 6 5 5 5 5 5 7 7 10 10 10 9 4 5 4 3 3 Processor 4 | . . . . 7 . . 14 7 9 5 . . 5 . 4 3 . 1 . . . 5 5 14 13 9 7 . 1 7 5 9 5 2 Hackware 3 | . . . . . 4 . . 3 9 7 . . 1 8 10 14 12 12 3 . . . . . . . 3 7 3 . 2 . . . Protection 8 | . . . 3 18 5 16 7 8 5 13 21 18 12 25 18 10 12 9 8 11 11 3 9 10 8 10 8 12 7 4 9 9 4 10 Energy Gun 2 | . . . 13 9 8 . . 3 1 3 . . . . . . . . 2 . . 4 7 2 . . 4 . 1 1 . . 1 . Energy Cannon 2 | . 7 11 5 . 1 2 . 2 1 1 7 . . . . . . . 1 5 8 . . . . . . 1 7 8 3 . . 1 Ballistic Gun 4 | . 19 22 14 . . . 5 8 5 3 . . . . . 2 12 8 2 2 1 1 . . 4 . 4 . 2 1 1 . . . Ballistic Cannon 1 | . . . . 2 . . . . . 4 7 6 3 3 . 1 . 3 1 . . . 2 5 5 3 . 1 . . . . . 3 Slashing Weapon 1 | . . . . 1 2 8 6 1 3 . . . . . 3 . . . . . . . . . . . . . . . 2 2 . 2 Peak Build Rating 238 | 8 9 20 30 45 70 71 62 57 66 75 72 92 94 94 84 116 109 116 125 128 126 134 130 134 139 129 144 147 162 166 172 186 217 238 Average Rating 94 | 5 7 9 18 41 63 64 49 51 58 67 72 74 81 77 72 95 109 107 108 121 118 117 124 129 127 120 135 135 143 145 160 179 202 207 On Entrance 92 | . 8 8 10 22 41 69 56 51 46 60 72 72 71 69 70 74 109 109 109 115 123 122 129 120 134 122 129 143 131 146 148 163 183 201 Avg Prop Armor Cover (%) 10 | . . . 14 . . . . . 5 1 . 6 . 1 1 2 . . . 1 1 . 2 . . 4 . 2 2 . . . . . Naked Turns . | . . . . . . . . . . . . . . . . . . . . . . . . . . . . . . . . . . . Heaviest Build 301 | 15 31 37 121 135 135 129 129 132 141 153 146 150 157 163 148 163 148 172 191 201 203 195 175 175 188 202 194 194 192 196 218 261 278 301 Greatest Support 60 | 40 40 40 60 20 30 30 24 16 44 32 28 34 40 28 28 32 22 38 32 28 28 32 28 28 28 28 28 28 60 60 28 32 28 38 Greatest Overweight (x) 18 | . . . 6 13 12 12 12 13 7 8 5 12 6 11 11 9 6 7 18 16 16 6 13 7 14 15 6 14 14 18 9 9 11 13 Average Overweight (x) 5 | . . . 4 11 7 9 7 10 3 5 5 4 4 7 4 5 6 6 6 11 7 4 6 6 5 6 5 6 4 7 7 6 8 9 Largest Inventory Capacity 25 | 8 15 15 25 25 25 25 25 25 25 25 25 25 25 25 25 25 25 25 25 25 25 25 25 25 25 25 25 25 25 25 25 25 25 25 Average Capacity 24 | 6 11 15 24 25 25 25 25 25 25 25 25 25 25 25 25 25 25 25 25 25 25 25 25 25 25 25 25 25 25 25 25 25 25 25 Most Carried 25 | 8 15 15 25 25 25 25 25 25 25 25 25 25 25 25 25 25 25 25 25 25 25 25 25 25 25 25 25 25 25 25 25 25 25 25 Average Carried 23 | 3 11 14 23 24 24 23 24 24 24 24 25 24 23 22 24 23 25 23 24 24 24 24 22 24 23 23 24 23 22 24 24 24 24 22 Final Capacity 25 | 8 15 15 25 25 25 25 25 25 25 25 25 25 25 25 25 25 25 25 25 25 25 25 25 25 25 25 25 25 25 25 25 25 25 25 Final Carried 25 | 8 15 15 25 25 25 23 25 23 23 25 25 25 23 25 25 25 25 24 23 25 25 20 25 25 25 25 25 25 22 25 25 25 25 13 Transmogrified Parts 450 | . . . . 10 39 3 18 15 19 18 . 5 21 17 10 23 1 6 20 9 9 37 9 5 10 11 7 4 25 12 29 23 11 24 Integrity Recovered 4939 | . . . . 29 491 3 168 64 62 160 . 35 151 255 48 273 11 121 413 98 136 375 212 31 81 135 210 49 481 51 312 46 20 418 Class Distribution -------------------- 40% | Mutant 11% | Commander-Mutant 10% | Hacker-Mutant 4% | Scavenger-Mutant 4% | Generator-Mutant 3% | Gunner 3% | Scavenger-Gunner 3% | Skirmisher Dominant Class ---------------- Mutant | -10/Materials Gunner | -10/Mines Scavenger-Gunner | -10/Subcaves Mutant | -8/Materials Mutant | -8/Garrison Mutant | -8/Materials Mutant | -8/Garrison Mutant | -8/Materials Mutant | -7/Factory Mutant | -7/Garrison Commander-Mutant | -7/Factory Mutant | -7/DSF Mutant | -6/Factory Mutant | -6/Garrison Hacker-Mutant | -6/Factory Hacker-Mutant | -6/Garrison Hacker-Mutant | -6/Factory Hacker-Mutant | -6/DSF Skirmisher | -5/Factory Scavenger-Skirmisher | -5/Upper Caves Mutant | -5/Upper Caves Commander-Mutant | -5/Warlord Commander-Mutant | -4/Proximity Caves Commander-Mutant | -4/Factory Scavenger-Mutant | -4/Extension Commander-Mutant | -4/Cetus Scavenger-Mutant | -4/Archives Mutant | -4/Hub_04(d) Scavenger-Tank | -4/Garrison Scavenger-Skirmisher | -3/Research Mutant | -3/Testing Generator-Mutant | -2/Research Generator-Gunner | -1/Access Generator-Mutant | -1/Command Resources | -11 -10 -10 -10 -8 -8 -8 -8 -8 -7 -7 -7 -7 -6 -6 -6 -6 -6 -6 -5 -5 -5 -5 -4 -4 -4 -4 -4 -4 -4 -3 -3 -2 -1 -1 ----------- Run | Yrd Mat Min Sub Mat Gar Mat Gar Mat Fac Gar Fac DSF Fac Gar Fac Gar Fac DSF Fac Upp Upp War Pro Fac Ext Cet Arc Hub Gar Res Tes Res Acc Com Matter Collected 24993 | 255 714 430 1396 235 1030 146 381 482 1159 1229 . 442 1143 684 527 1913 . 345 1505 120 434 992 305 419 1237 170 365 237 1750 583 1703 465 119 2078 Remotely 5172 | . . . . . . . . . . 206 . . 596 192 92 . . 99 897 . . 889 . 41 957 170 140 . . . . . . 893 Salvage Created 25251 | 78 843 337 608 455 1474 428 1045 1161 929 1005 . 212 1383 447 772 1762 . 169 1208 . 452 84 143 310 730 287 337 348 2215 622 3097 156 854 1300 Parts 1149 | 9 54 13 41 24 54 32 46 44 54 45 . 13 70 16 22 85 . 8 58 . 9 2 8 10 40 7 18 15 90 29 157 9 42 25 Haulers Intercepted 9 | . 2 . . 1 . . . . . . . . . . 3 . . . . . . . . . . . . . . . 3 . . . Recyclers Shooed 18 | 1 1 . . 1 . . . . 3 . . . 6 . 1 . . . 2 . . . . 2 . . . . . . 1 . . . Parts Field Recycled . | . . . . . . . . . . . . . . . . . . . . . . . . . . . . . . . . . . . Retrieved Matter . | . . . . . . . . . . . . . . . . . . . . . . . . . . . . . . . . . . . Parts Self-Destructed 48 | . . . 26 . . . . . . . . . . . . . . . . . 1 . 21 . . . . . . . . . . . Prevented 4 | . . . 2 . . . . . . . . . . . . . . . . . . . 2 . . . . . . . . . . . Parts Restored . | . . . . . . . . . . . . . . . . . . . . . . . . . . . . . . . . . . . Kills | -11 -10 -10 -10 -8 -8 -8 -8 -8 -7 -7 -7 -7 -6 -6 -6 -6 -6 -6 -5 -5 -5 -5 -4 -4 -4 -4 -4 -4 -4 -3 -3 -2 -1 -1 ------- Run | Yrd Mat Min Sub Mat Gar Mat Gar Mat Fac Gar Fac DSF Fac Gar Fac Gar Fac DSF Fac Upp Upp War Pro Fac Ext Cet Arc Hub Gar Res Tes Res Acc Com Combat Hostiles Destroyed 425 | . 17 3 19 8 19 6 30 19 7 20 . 7 30 20 1 48 . 7 25 . 5 1 4 1 13 4 1 8 30 7 33 . 11 21 Melee 12 | . . . . . . 1 4 . 1 . . . 1 . . . . . . . . . . . . . . . . . 5 . . . Guns 112 | . 12 3 13 4 3 . 3 6 6 10 . . . . . 15 . 2 3 . . . 3 . 7 . 1 . 4 5 10 . 2 . Cannons 161 | . 5 . 5 . 2 2 1 10 . 3 . 7 25 10 1 33 . . 12 . 2 . 1 1 6 . . 5 17 1 5 . 2 5 AOE 95 | . . . . 4 11 1 20 3 . 5 . . 4 8 . . . 5 10 . 3 1 . . . 1 . 3 . . 4 . 3 9 Classes Destroyed 28 | 2 6 1 4 . 2 2 2 1 . 1 . 1 1 1 . 2 . . . . . . . . 1 . . 1 . . . . . . Worker 31 | . 1 . . . . 1 . 2 11 . . . 7 . . . . . 6 . . . . 1 . . . . . 1 . . . 1 Builder 23 | . . . . . . 4 . 2 . . . . 2 . 1 . . . 3 . . . . 3 3 . . . . 2 2 . 1 . Tunneler 7 | 1 . 1 . 1 . . . 1 . . . . 1 . . . . . 1 . . . . . . . . 1 . . . . . . Hauler 9 | . 2 . . 1 . . . . . . . . . . 3 . . . . . . . . . . . . . . . 3 . . . Recycler 32 | 1 2 2 . 2 . . . 2 5 . . . 4 . 4 . . . 2 . . . . 2 2 . . 1 . . 2 1 . . Mechanic 3 | . . . . . . . . 1 1 . . . 1 . . . . . . . . . . . . . . . . . . . . . Operator 19 | . 1 . . 1 . . . 2 . . . . 3 . . . . . 1 . . . . . . . 9 . . . 1 . 1 . Turret 2 | . . . 2 . . . . . . . . . . . . . . . . . . . . . . . . . . . . . . . Watcher 8 | . 3 . . . . . . . . . . . . . . . . . 1 . . . . . 1 . . . . . 2 1 . . Swarmer 86 | . 6 . 12 4 6 . 11 . . 3 . . 6 . . 7 . 4 9 . 2 1 . . 4 . . . . . 4 . . 7 Cutter 6 | . . . . . 1 . . . . . . 1 . . . 4 . . . . . . . . . . . . . . . . . . Saboteur 1 | . . . . . . . . . . . . . 1 . . . . . . . . . . . . . . . . . . . . . Grunt 135 | . 11 . 1 3 9 2 10 14 2 10 . 3 6 6 . 14 . 2 6 . 2 . . . 4 . . . 19 5 4 . 2 . Brawler 12 | . . . . . . 1 1 1 . 1 . 1 1 1 . 2 . . 1 . . . . . . . . . . . 1 . 1 . Duelist 10 | . . . . . . . 1 1 . 1 . . 2 2 . . . . 2 . . . . . . . . . 1 . . . . . Protector 1 | . . . . . . . . . . . . . . . . . . . . . . . . . . . . 1 . . . . . . Sentry 44 | . . 2 1 1 3 1 2 3 1 3 . . 4 1 . 5 . . 4 . 1 . . . 2 . 1 4 2 2 . . . 1 Specialist 14 | . . . . . . . . . . 1 . . 3 . . 1 . 1 . . . . 2 . . . . . . . 6 . . . Hunter 36 | . . . . . 1 2 2 . . . . 1 3 . . 5 . . 2 . . 1 2 . . . . . 3 . 6 . 3 5 Programmer 46 | . . . . . . . 3 . 4 1 . . 4 . 1 8 . . 1 . . . . 1 . . . . 4 . 10 . 5 4 Heavy 3 | . . . . . . . . . . . . 1 . . . . . . . . . . . . . . . . . . . . . 2 Behemoth 6 | . . . . . . . . . . . . . . . . 1 . . . . . . 1 . 2 . . . 1 . . . . 1 Cetus Guard 4 | . . . . . . . . . . . . . . . . . . . . . . . . . . 4 . . . . . . . . M Guard 1 | . . . . . . . . . . . . . . . . . . . . . . . . . . . . . . . . . . 1 Lightning 4 | . . . . . . . . . . . . . . . . . . . . . . . . . . . . 3 . . . . . 1 Combat Programmer 1 | . . . . . . . . . . . . . . . . . . . . . . . . . . . . . . . . . . 1 Striker 1 | . . . . . . . . . . . . . . . . 1 . . . . . . . . . . . . . . . . . . Protovariant G 1 | . . . . . . . . . . . . . . . . . . . . . . . . . . . . . . . 1 . . . Protovariant L 1 | . . . . . . . . . . . . . . . . . . . . . . . . . . . . . . . 1 . . . Subdweller 4 | . . . 4 . . . . . . . . . . . . . . . . . . . . . . . . . . . . . . . Scientist 1 | . . . 1 . . . . . . . . . . . . . . . . . . . . . . . . . . . . . . . Botcube 2 | . . . . . . . . . . . . . . . . . . . . . . . . . 1 . . . 1 . . . . . Packrat 3 | . . . . . . . . . . . . . . . . . . . . . 3 . . . . . . . . . . . . . Assembled 10 | . . . . . . . . . . . . . . 10 . . . . . . . . . . . . . . . . . . . . Butcher 1 | . . . . . . . . . . . . . . . . . . . . . . . . . . . . . . . . . . 1 Guerrilla 1 | . . . . . . . . . . . . . . . . . . . . . . . . . 1 . . . . . . . . . Wizard 1 | . . . . . . . . . . . . . . . . . . . . . . . . . . . . . . . . . . 1 Mutant 1 | . . . 1 . . . . . . . . . . . . . . . . . . . . . . . . . . . . . . . Commander 1 | . . . . . . . . . . . . . . . . . . . . . 1 . . . . . . . . . . . . . Best Kill Streak 23 | 2 6 2 4 5 7 3 12 6 5 6 . 3 7 10 2 7 . 6 23 . 5 1 2 3 6 4 3 6 4 5 8 1 4 7 Combat Bots Only 12 | . 6 1 4 4 7 3 12 4 2 6 . 3 6 10 1 7 . 6 11 . 5 1 2 1 5 4 1 6 4 5 8 . 4 7 Max Kills in Single Turn 6 | 1 2 1 2 2 3 1 4 2 1 2 . 1 6 3 1 3 . 3 3 . 2 1 1 1 2 2 1 2 1 1 2 1 3 3 Gunslinging 1 | . . . 1 . . . . . . . . . . . . . . . . . . . . . . . . . . . . . . . Exploded 4 | . . . . 2 3 1 4 2 . 2 . . 3 3 . . . 3 3 . 2 1 . . . 1 . 2 . . 1 . 1 3 Melee 1 | . . . . . . 1 1 . 1 . . . 1 . . . . . . . . . . . . . . . . . 1 . . . Uniques/NPCs Destroyed 3 | . . 1 . . . . . . . . . . . . . . . . . . . . . . . . . . . . . . . 2 YI-UF0 (-10/Mines) MAIN.C Shell (-1/Command) MAIN.C (-1/Command) Combat | -11 -10 -10 -10 -8 -8 -8 -8 -8 -7 -7 -7 -7 -6 -6 -6 -6 -6 -6 -5 -5 -5 -5 -4 -4 -4 -4 -4 -4 -4 -3 -3 -2 -1 -1 -------- Run | Yrd Mat Min Sub Mat Gar Mat Gar Mat Fac Gar Fac DSF Fac Gar Fac Gar Fac DSF Fac Upp Upp War Pro Fac Ext Cet Arc Hub Gar Res Tes Res Acc Com Hostile Shots Fired 2434 | . 47 16 100 15 66 26 116 98 51 101 . 4 210 28 2 301 . 29 142 . 17 13 33 . 132 16 . 42 259 22 259 . 32 257 Missed 779 | . 13 5 47 5 16 7 39 26 12 30 . 1 66 1 1 102 . 9 45 . 9 5 7 . 34 7 . 7 72 4 112 . 16 81 Intercepted 7 | . . . . . . . . . . . . . . . . . . . . . . . . . . . . . . . . . . 7 Hits 1655 | . 34 11 53 10 50 19 77 72 39 71 . 3 144 27 1 199 . 20 97 . 8 8 26 . 98 9 . 35 187 18 147 . 16 176 Melee 42 | . . . . . 1 . 1 6 . 4 . . 4 8 . 2 . . 5 . . 3 . . . . . . 3 . . . . 5 Projectile 1613 | . 34 11 53 10 49 19 76 66 39 67 . 3 140 19 1 197 . 20 92 . 8 5 26 . 98 9 . 35 184 18 147 . 16 171 AOE 21 | . . 8 . . 1 . . 1 . . . 1 . . . 1 . . 1 . . . . . . . . 1 . . 1 . . 6 Critical Strikes 95 | . . . 1 1 7 . 3 10 3 4 . . 3 1 1 7 . . 8 . 1 3 2 . 4 2 . 3 9 . 7 . 1 14 Actively Blocked 1 | . . . . . . . . . . . . . . . . . . . 1 . . . . . . . . . . . . . . . Part Disruptions 3 | . . . . . . . . . . . . . . . . . . . . . . . 1 . . . . . . . 1 . 1 . Damage Taken 22285 | . 408 330 829 120 928 317 833 1319 352 887 . 67 1158 514 29 2307 . 165 1262 . 165 256 521 14 1600 169 32 679 1489 332 971 . 122 4110 Core 1768 | . 112 48 187 . 41 16 104 147 14 72 . . 120 69 . 130 . 38 179 . . 4 37 . 41 . 23 60 110 . 41 . 5 170 Absorbed by Shields 9214 | . . . . . 12 . 254 69 134 22 . 9 985 61 10 479 . 138 945 . . 230 334 6 851 165 31 697 1071 68 620 . 126 1897 Reduced by Siege Mode 126 | . . . . . . . . . . . . . . . . . . . . . . . . . . . . . 11 16 . . . 99 Redirected to Shielding 437 | . . . . . . . . . . . . . 65 10 . 1 . 28 250 . . . . . . . 9 . 3 . 6 . . 65 Ignored by Resistances 3840 | . . . . . . 9 56 . 23 . . 3 98 91 . 94 . 30 9 . 26 32 . . 107 . . 70 1134 . 1528 . 139 391 Regen/Repaired (Parts) 1168 | . 77 . . . . . . . 38 . . . 478 . . . . . . 64 . 13 . . 21 . . 31 68 . 378 . . . Core Remaining (%) 88 | 100 . . 84 . . . . 77 . . . 89 . . . . . 88 . . . . 80 . . . . . 81 . 97 100 . 89 Volleys Fired 1676 | 5 74 16 77 23 45 15 47 67 24 106 . 29 106 46 13 165 . 34 87 1 37 15 18 27 54 12 42 29 167 36 116 4 41 98 Largest 4 | 2 2 3 4 2 2 2 2 2 2 2 . 2 1 1 1 2 . 2 2 2 2 2 2 2 2 1 2 1 3 3 2 1 1 4 Hottest 291 | 40 100 100 196 100 118 101 72 160 108 160 . 66 75 60 60 164 . 76 151 151 226 260 96 96 260 51 135 60 291 231 240 120 200 248 Shots Fired 2440 | 10 145 41 153 34 63 21 58 120 42 140 . 49 106 46 13 228 . 48 106 2 42 16 34 30 94 13 76 28 282 60 130 4 41 165 Gun 1045 | 10 111 29 103 27 37 6 34 70 36 57 . . . . . 112 . 28 42 1 1 4 26 7 41 . 72 . 62 27 79 . 23 . Cannon 1182 | . 30 12 39 5 10 10 4 45 6 64 . 49 102 36 13 103 . 17 48 1 39 . 8 20 39 4 2 23 204 33 44 2 10 160 Launcher 154 | . . . 11 2 16 5 20 5 . 13 . . . 10 . 2 . 3 15 . 2 1 . . 14 9 1 3 . . 7 2 8 5 Special 59 | . 4 . . . . . . . . 6 . . 4 . . 11 . . 1 . . 11 . 3 . . 1 2 16 . . . . . Kinetic 1297 | 10 111 26 39 5 . 4 38 49 32 76 . 49 99 36 13 205 . 45 62 1 1 . 8 24 73 4 37 23 37 23 67 . . 100 Thermal 671 | . 34 12 52 7 . 5 . 14 9 45 . . 3 . . 21 . . 28 1 39 1 . . 14 . 35 . 208 37 40 2 33 31 Explosive 63 | . . . 11 2 5 . 14 5 . 3 . . . 5 . 2 . 3 6 . 2 . . . . 1 1 3 . . . . . . Electromagnetic 341 | . . 3 51 20 58 12 6 52 1 10 . . . 5 . . . . 9 . . . . . . 8 2 . 37 . 23 2 8 34 Entropic 40 | . . . . . . . . . . . . . . . . . . . . . . 4 26 3 7 . . . . . . . . . Robot Hit Streak 35 | 4 8 12 22 18 14 6 10 14 19 27 . 4 12 14 11 21 . 13 14 2 12 8 12 12 35 3 4 10 16 18 16 . 5 33 Robot Miss Streak 9 | 2 9 3 4 2 3 2 2 3 1 3 . 4 4 5 1 5 . 2 3 1 2 2 3 2 3 1 4 6 6 1 5 . 4 5 Penetration Max 3 | . . . . . . . . . . . . . . . . 1 . . 1 . . . . 1 3 . . . 1 1 1 . . . Secondary Targets 7 | . 1 . 2 . . . . 2 . 1 . . . . . 1 . . . . . . . . . . . . . . . . . . Max Gunslinging Chain 1 | . 1 . 1 . . . . 1 . 1 . . . . . 1 . . . . . . . . . . . . . . . . . . Capacitor 32 | . . . . . . . . . . . . . . . . . . . . . . 1 . . . . . . . . . . 31 . Shots Hit Robots 1673 | 6 88 28 74 28 84 25 43 91 54 79 . 20 98 30 20 152 . 15 78 1 27 14 29 17 73 3 47 23 152 35 110 1 20 108 Core Hits 1072 | 3 39 11 31 17 46 11 50 66 30 52 . 14 72 32 11 96 . 10 68 . 22 5 9 10 38 13 20 62 58 21 66 4 23 62 Critical Kills 32 | . 1 . . . . . 1 . . 1 . . . . . 2 . . 3 . . . . . 3 . . . 4 2 13 . . 2 Critical Parts Destroyed 32 | . . 1 . . . . . . 2 1 . . . . . 3 . 1 2 1 . 1 . . 3 . 1 . 2 1 13 . . . Critical Strikes 107 | . 1 1 . . 1 . 2 1 2 2 . . 4 . 1 10 . 1 7 1 . 1 . 2 10 1 9 2 9 4 31 . . 4 Burn 10 | . . . . . . . . . . . . . . . . . . . . . . . . . . . 8 . . . 2 . . . Meltdown 8 | . . . . . . . . . . . . . . . . . . . . . . . . . . . . . 3 . 3 . . 2 Destroy 54 | . 1 1 . . . . . . 2 2 . . . . . 5 . 1 5 1 . . . . 5 . 1 . 3 4 23 . . . Blast 22 | . . . . . . . . . . . . . 4 . 1 5 . . 2 . . . . 2 4 1 . 2 . . . . . 1 Corrupt 6 | . . . . . 1 . . 1 . . . . . . . . . . . . . . . . . . . . 2 . 1 . . 1 Smash 1 | . . . . . . . 1 . . . . . . . . . . . . . . . . . . . . . . . . . . . Sever 4 | . . . . . . . 1 . . . . . . . . . . . . . . . . . . . . . 1 . 2 . . . Detonate 2 | . . . . . . . . . . . . . . . . . . . . . . 1 . . 1 . . . . . . . . . Melee Attacks 348 | . . . 9 2 78 13 38 9 41 35 . . 5 11 17 18 . . 1 . . 4 4 . 11 . . . 13 . 35 2 . 2 Impact 67 | . . . 9 . 12 . 7 . 3 35 . . . . . . . . 1 . . . . . . . . . . . . . . . Slashing 244 | . . . . 2 57 13 31 9 38 . . . 5 11 17 13 . . . . . . . . . . . . 9 . 35 2 . 2 Piercing 28 | . . . . . . . . . . . . . . . . 5 . . . . . 4 4 . 11 . . . 4 . . . . . Sneak Attacks 73 | . . . . 1 10 5 . 3 21 . . . 4 . 6 3 . . 1 . . 3 . . . . . . 7 . 8 1 . . Combat Hostiles 4 | . . . . . . . . . 1 . . . . . . 3 . . . . . . . . . . . . . . . . . . Follow-up Attacks 1 | . . . . . . . 1 . . . . . . . . . . . . . . . . . . . . . . . . . . . Damage Inflicted 87841 | 68 1273 402 1434 662 3880 1041 3170 3321 2269 2620 . 961 5889 2538 1418 7279 . 924 4654 32 1584 530 1121 560 3884 808 1351 2371 5307 1152 5723 224 2179 17212 Guns 16669 | 68 919 260 977 414 336 80 159 1230 536 1073 . . . . . 2812 . 477 889 32 . 103 986 162 1251 . 1189 . 806 515 836 . 559 . Cannons 42266 | . 338 142 380 55 150 152 139 669 . 816 . 961 4909 1595 885 4389 . . 2165 . 1059 . 130 398 1192 117 . 1215 3942 637 1650 . 401 13780 Explosions 19431 | . . . 77 133 1099 267 1948 1230 37 731 . . 710 943 . . . 447 1530 . 525 97 . . 1417 691 162 1156 . . 1554 90 1219 3368 Melee 9308 | . . . . 60 2295 542 924 192 1696 . . . 270 . 533 16 . . 70 . . 330 5 . 24 . . . 470 . 1683 134 . 64 Ramming 16 | . 16 . . . . . . . . . . . . . . . . . . . . . . . . . . . . . . . . . Kinetic 31163 | 68 919 227 302 55 . 47 298 755 401 847 . 961 4834 1595 885 7201 . 477 2785 32 . . 130 515 1946 117 392 1215 455 401 577 . . 2726 Thermal 27240 | . 338 142 592 110 114 62 . 296 135 1094 . . 123 111 . 62 . . 381 . 1059 97 . . 1417 . 797 . 3237 751 1865 . 1287 13170 Explosive 8023 | . . . 15 133 512 . 1411 1230 . 270 . . 662 486 . . . 447 802 . 525 . . . . 26 162 1156 . . 186 . . . Electromagnetic 10460 | . . 33 525 304 959 390 537 848 37 409 . . . 346 . . . . 616 . . . . . . 665 . . 1145 . 1412 90 892 1252 Impact 312 | . . . . . . . 242 . . . . . . . . . . . 70 . . . . . . . . . . . . . . . Slashing 8611 | . . . . 60 2295 542 682 192 1696 . . . 270 . 533 . . . . . . . . . . . . . 460 . 1683 134 . 64 Piercing 385 | . . . . . . . . . . . . . . . . 16 . . . . . 330 5 . 24 . . . 10 . . . . . Entropic 1631 | . . . . . . . . . . . . . . . . . . . . . . 103 986 45 497 . . . . . . . . . Highest Corruption 32 | . 1 1 14 . . . 10 . 4 1 . . 3 3 3 1 . . . . 15 15 15 . . 20 20 16 32 . 25 . 9 17 Average Corruption 8 | . 1 1 11 . . . 8 . 2 1 . . 1 3 3 1 . . . . 15 15 13 . . 11 15 12 22 . 9 . 3 4 Corruption Purged 21 | . . . . . . . . . . . . . . . . . . . . . . . . . . . 11 . . . . . 4 6 Corruption Blocked . | . . . . . . . . . . . . . . . . . . . . . . . . . . . . . . . . . . . Effects 353 | . 6 1 54 . . . 4 . 12 9 . . 11 8 4 . . . . . 6 4 17 . . 11 28 13 111 . 18 . 3 33 Message Errors 84 | . 1 . 14 . . . . . 3 4 . . 3 1 1 . . . . . 1 . 2 . . 1 4 3 29 . 7 . 1 9 Matter Fused 94 | . 1 . 18 . . . 2 . 1 1 . . 2 3 . . . . . . 2 3 8 . . 1 4 5 30 . 4 . 1 8 Heat Flow Errors 41 | . 1 . 6 . . . 1 . 3 2 . . 3 3 2 . . . . . 1 . 1 . . 2 3 . 6 . 3 . . 4 Energy Discharges 30 | . 2 . 3 . . . . . 1 2 . . . . . . . . . . . 1 2 . . 1 3 2 10 . . . . 3 Parts Rejected 4 | . . . 1 . . . . . . . . . 2 . . . . . . . . . . . . . . 1 . . . . . . Parts Fused 6 | . . . 1 . . . . . . . . . . . . . . . . . 1 . . . . . 3 . . . . . . 1 Data Loss (minor) 35 | . 1 . 5 . . . . . . . . . . 1 1 . . . . . 1 . 2 . . 3 5 . 14 . . . 1 1 Data Loss (major) 11 | . . . 1 . . . . . 2 . . . 1 . . . . . . . . . . . . 1 1 . 2 . 1 . . 2 Misfires 13 | . . 1 2 . . . . . 1 . . . . . . . . . . . . . . . . 1 2 . 5 . 1 . . . Alerts 9 | . . . 1 . . . 1 . 1 . . . . . . . . . . . . . 1 . . 1 . . 1 . 1 . . 2 Misdirections 2 | . . . . . . . . . . . . . . . . . . . . . . . . . . . . 1 1 . . . . . Weapon Failures 24 | . . . 2 . . . . . . . . . . . . . . . . . . . 1 . . . 3 1 13 . 1 . . 3 Overload Shots . | . . . . . . . . . . . . . . . . . . . . . . . . . . . . . . . . . . . Overflow Damage 8621 | . . 10 26 30 101 171 82 88 392 22 . . 335 146 207 90 . 68 181 . 256 . . 17 51 . 18 18 49 1 963 . 136 5163 Projectiles 6188 | . . 10 26 . . . . . . 12 . . 158 15 50 90 . . 97 . 190 . . 17 42 . . 16 49 1 311 . 136 4968 Explosions 957 | . . . . . 48 7 39 18 . 10 . . 143 131 . . . 68 54 . 66 . . . 9 . 18 2 . . 158 . . 186 Melee 1476 | . . . . 30 53 164 43 70 392 . . . 34 . 157 . . . 30 . . . . . . . . . . . 494 . . 9 Knockbacks 165 | . . . . . . . . . . 2 . 6 53 13 5 32 . . 23 . . . 1 4 6 . . 6 . . . . . 14 Impact 1 | . . . . . . . . . . . . . . . . . . . 1 . . . . . . . . . . . . . . . Kinetic 156 | . . . . . . . . . . 2 . 6 49 12 5 29 . . 22 . . . 1 4 6 . . 6 . . . . . 14 Secondary 8 | . . . . . . . . . . . . . 4 1 . 3 . . . . . . . . . . . . . . . . . . Self-Inflicted Damage 1084 | . . . 49 . 14 . 158 20 . 4 . . 178 20 . . . . 39 . 28 102 . . . 56 63 184 . . 60 . 45 64 Shots 53 | . . . 2 . 1 . 10 2 . 1 . . 3 1 . . . . 1 . 1 1 . . . 1 1 14 . . 5 . 4 5 Rammed 4 | . 3 . . . . . . . . . . . 1 . . . . . . . . . . . . . . . . . . . . . Targets Rammed 5 | . 4 . . . . . . . . . . . 1 . . . . . . . . . . . . . . . . . . . . . Kicked . | . . . . . . . . . . . . . . . . . . . . . . . . . . . . . . . . . . . Crushed 1 | . 1 . . . . . . . . . . . . . . . . . . . . . . . . . . . . . . . . . Highest Temperature 440 | . 228 57 221 100 280 152 264 351 281 230 . 103 223 217 200 234 . 222 300 147 259 180 134 160 440 66 200 241 270 149 263 8 272 349 Average Temperature 79 | . 19 11 53 41 90 63 41 65 88 58 . 50 60 72 79 69 . 100 104 73 101 66 65 52 104 31 85 104 106 50 81 4 69 110 Received Heat Transfer 4398 | . 198 18 207 36 447 36 125 624 70 211 . 9 89 171 . 492 . 45 239 . 45 4 21 . 774 . . 34 268 102 129 . . 4 Effects 9 | . . . . . 1 . . 1 . . . . . 1 . 1 . . 2 . . . . . 1 . . . . . . . . 2 Energy Bleed 2 | . . . . . 1 . . . . . . . . 1 . . . . . . . . . . . . . . . . . . . . Interference 3 | . . . . . . . . . . . . . . . . 1 . . 2 . . . . . . . . . . . . . . . Short Circuit 3 | . . . . . . . . 1 . . . . . . . . . . . . . . . . 1 . . . . . . . . 1 Damage (minor) 1 | . . . . . . . . . . . . . . . . . . . . . . . . . . . . . . . . . . 1 Siege Activations 6 | . . . . . . . . . . . . . . . . . . . . . . . . . . . . . 4 1 . . . 1 Total Turns 223 | . . . . . . . . . . . . . . . . . . . . . . . . . . . . . 85 48 . . . 90 Longest Duration 90 | . . . . . . . . . . . . . . . . . . . . . . . . . . . . . 27 48 . . . 90 Martial Activations . | . . . . . . . . . . . . . . . . . . . . . . . . . . . . . . . . . . . Shielding Activations . | . . . . . . . . . . . . . . . . . . . . . . . . . . . . . . . . . . . Robots Disrupted 1 | . . . . . . . . 1 . . . . . . . . . . . . . . . . . . . . . . . . . . Combat Hostiles 1 | . . . . . . . . 1 . . . . . . . . . . . . . . . . . . . . . . . . . . Robots Corrupted 41 | . . . 1 . 3 2 2 . . 2 . . . 2 . . . . 1 . . . . . . 3 . . 6 . 9 . 4 6 Combat Hostiles 36 | . . . 1 . 3 2 2 . . 2 . . . 2 . . . . . . . . . . . 3 . . 6 . 8 . 4 3 Parts Fried 57 | . . . 1 2 6 2 5 5 . 3 . . . 1 . . . . 3 . . . . . . 2 . . 7 . 7 . 8 5 Impact Corruptions 3 | . . . . . . . 2 . . . . . . . . . . . 1 . . . . . . . . . . . . . . . Robots Melted 12 | . . . . 1 . . . . . . . . . . . . . . . . . . . . . . . . 3 1 3 . . 4 Combat Hostiles 8 | . . . . . . . . . . . . . . . . . . . . . . . . . . . . . 3 1 . . . 4 Parts Melted 38 | . . 2 . 3 . . 1 3 . 1 . . . . . 1 . . . . . . . . 1 . 3 . 10 1 8 . 3 1 Heat Transferred 22546 | . 703 296 694 125 100 111 . 675 250 1887 . . 161 100 . 225 . . 483 . 999 75 . . 1700 . 1628 . 4506 948 1718 . 1105 4057 Parts Sabotaged . | . . . . . . . . . . . . . . . . . . . . . . . . . . . . . . . . . . . Parts Stolen . | . . . . . . . . . . . . . . . . . . . . . . . . . . . . . . . . . . . Parts Stripped . | . . . . . . . . . . . . . . . . . . . . . . . . . . . . . . . . . . . Power Chain Reactions 10 | . . . 1 . 2 . . . . 1 . . . 1 . . . . 2 . . . . . . . . . . . 1 . 1 1 Alert | -11 -10 -10 -10 -8 -8 -8 -8 -8 -7 -7 -7 -7 -6 -6 -6 -6 -6 -6 -5 -5 -5 -5 -4 -4 -4 -4 -4 -4 -4 -3 -3 -2 -1 -1 ------- Run | Yrd Mat Min Sub Mat Gar Mat Gar Mat Fac Gar Fac DSF Fac Gar Fac Gar Fac DSF Fac Upp Upp War Pro Fac Ext Cet Arc Hub Gar Res Tes Res Acc Com Maximum Alert Level 5 | . . . . . 5 3 5 3 2 5 3 3 4 4 3 5 3 3 4 . . . . . 1 . . . 4 3 3 2 2 3 Low Security (%) 32 | 100 100 100 . 100 6 . . . 82 8 . . . . . . . . . . . . . 100 90 100 100 100 14 . 17 54 66 . Level 1 10 | . . . . . 8 . . . 10 8 . . . . 40 9 . . . . . . . . 9 . . . 14 . 62 31 7 4 Level 2 18 | . . . . . 28 . 3 28 7 36 . 12 25 . 31 22 . . 43 . . . . . . . . . 29 40 14 14 26 36 Level 3 23 | . . . . . 36 100 20 71 . 17 100 87 24 18 28 18 100 100 54 . . . . . . . . . 29 59 5 . . 58 Level 4 10 | . . . . . 18 . 42 . . 19 . . 50 81 . 22 . . 2 . . . . . . . . . 12 . . . . . Level 5 3 | . . . . . 1 . 33 . . 10 . . . . . 28 . . . . . . . . . . . . . . . . . . High Security . | . . . . . . . . . . . . . . . . . . . . . . . . . . . . . . . . . . . Max Security . | . . . . . . . . . . . . . . . . . . . . . . . . . . . . . . . . . . . Sterilizations 3 | . . . . 1 . . . . . . . 1 . . . . . 1 . . . . . . . . . . . . . . . . Peak Influence 2084 | 5 146 58 . 117 1609 847 1815 969 440 1690 886 1029 1317 1507 797 2084 1094 1031 1137 . . . . 98 229 142 180 195 1362 787 857 483 593 896 Initial 1094 | . . . . 46 36 783 544 884 440 109 886 616 539 916 791 213 1094 758 541 . . . . 79 29 2 15 15 118 765 352 476 . 353 Average 562 | 1 49 8 . 35 780 790 1323 764 130 825 885 871 991 1275 494 1118 1090 895 805 . . . . 29 104 73 113 54 643 707 352 200 197 684 Influence Increases 21057 | 10 502 114 444 230 1693 214 1311 765 533 1651 5 453 1318 641 310 1941 . 273 1240 . 100 175 425 223 487 266 307 403 1434 224 1279 45 733 1308 Destroy 0b10 Robot/C 9960 | . 340 80 340 160 460 120 600 400 140 780 . 240 640 220 60 1120 . 180 620 . 100 120 300 40 340 160 80 180 640 140 660 . 220 480 Destroy 0b10 Robot/NC 795 | 10 45 15 . 25 40 25 10 50 85 20 . 5 95 . 45 . . . 95 . . . . 30 30 10 45 15 5 15 50 10 10 10 Destroy Leader 1278 | . 80 10 10 22 30 50 40 80 60 40 . 50 152 10 28 60 . 30 124 . . . 20 10 32 . . 70 50 30 88 2 30 70 Allied During Kill 1009 | . . 8 4 . 41 . . 17 . 193 . 143 43 7 32 43 . 21 80 . . 40 105 19 29 58 34 24 6 . . . . 62 Successful Hack 509 | . 17 . . 5 12 . 14 8 156 14 5 . 3 . 34 22 . . 50 . . . . 11 . . . 21 26 3 60 24 . 24 Disable Machine 1050 | . 15 . . . 30 . 30 45 75 15 . . 210 15 45 75 . . 90 . . . . 75 . . 90 45 15 . 120 . 15 45 Anti-Garrison Action 3450 | . . . . . 1000 . 500 . . 450 . . . 300 . 500 . . . . . . . . . . . . 450 . . . 200 50 Destroy Structure 2456 | . 5 1 . 18 80 4 102 60 17 124 . 15 145 74 36 76 . 42 166 . . . . 38 56 38 58 48 227 36 256 9 258 467 Partial Spotted 45 | . . . . . . . . . . . . . 15 . 30 . . . . . . . . . . . . . . . . . . . Lose Combat Pursuer 405 | . . . 90 . . 15 15 105 . 15 . . 15 15 . 45 . . 15 . . 15 . . . . . . 15 . 45 . . . Active Sensor Use 100 | . . . . . . . . . . . . . . . . . . . . . . . . . . . . . . . . . . 100 Influence Decreases 20004 | 10 500 111 360 263 140 986 333 1611 1345 118 814 305 1038 443 1512 162 1000 326 1138 650 419 247 390 289 543 233 301 278 241 959 1059 892 180 808 Entered New Map 9659 | . . 2 3 43 20 826 293 931 529 48 804 265 490 393 716 92 990 326 490 420 93 164 92 48 32 3 23 29 51 597 275 371 . 200 Time Decay 8216 | 10 490 109 357 220 . 150 . 490 567 . 10 . 518 . 416 . 10 . 498 230 326 43 278 241 411 230 238 179 . 342 614 521 180 538 Lost Part 560 | . 10 . . . 40 10 40 110 . 10 . . 10 10 . 30 . . 50 . . 20 . . 60 . . 20 40 10 20 . . 70 Lost Ally 720 | . . . . . 80 . . 80 . 60 . 40 20 40 80 40 . . 100 . . 20 20 . 40 . 40 50 . 10 . . . . Purge Threat 849 | . . . . . . . . . 249 . . . . . 300 . . . . . . . . . . . . . 150 . 150 . . . Squads Dispatched 82 | . 3 2 . . . 1 . 6 9 . 1 2 11 . 2 . . 2 8 . . . . 1 1 . . 4 . 6 9 2 4 8 Investigation 10 | . . 1 . . . . . . 1 . 1 . . . . . . . 1 . . . . . 1 . . . . 1 . 2 1 1 Extermination 21 | . . . . . . . . . 4 . . . 3 . 1 . . . 2 . . . . 1 . . . . . . 4 . 2 4 Reinforcement 31 | . 3 . . . . 1 . 1 2 . . 2 4 . 1 . . 2 2 . . . . . . . . 1 . 5 4 . . 3 Assault 10 | . . 1 . . . . . 4 . . . . 3 . . . . . . . . . . . . . . . . . 1 . 1 . Garrison 10 | . . . . . . . . 1 2 . . . 1 . . . . . 3 . . . . . . . . 3 . . . . . . Intercept . | . . . . . . . . . . . . . . . . . . . . . . . . . . . . . . . . . . . Searches Triggered . | . . . . . . . . . . . . . . . . . . . . . . . . . . . . . . . . . . . Construction Impeded 3 | . . . . . . . . . 1 . . . . . . . . . 2 . . . . . . . . . . . . . . . Haulers Reinforced 2 | . . . . . . . . . . . . . . . 1 . . . . . . . . . . . . . . . 1 . . . Active Scanning Responses 1 | . . . . . . . . . . . . . . . . . . . . . . . . . . . . . . . . . . 1 Cargo Convoy Interrupts . | . . . . . . . . . . . . . . . . . . . . . . . . . . . . . . . . . . . Stealth | -11 -10 -10 -10 -8 -8 -8 -8 -8 -7 -7 -7 -7 -6 -6 -6 -6 -6 -6 -5 -5 -5 -5 -4 -4 -4 -4 -4 -4 -4 -3 -3 -2 -1 -1 --------- Run | Yrd Mat Min Sub Mat Gar Mat Gar Mat Fac Gar Fac DSF Fac Gar Fac Gar Fac DSF Fac Upp Upp War Pro Fac Ext Cet Arc Hub Gar Res Tes Res Acc Com Distress Signals 57 | . 2 . . 1 . 1 . 5 . . . . 3 . 2 . . . 2 . . 1 . . 1 2 . . . 6 1 3 4 23 Communications Jammed 60 | . . . . . . . . . . . . . . . . . . . . . . . . 1 . . . 57 . . . . . 2 Distress Signals 54 | . . . . . . . . . . . . . . . . . . . . . . . . . . . . 54 . . . . . . Times Spotted 709 | . 26 5 30 11 16 9 32 45 10 40 . 11 46 26 4 56 . 9 38 . 5 28 16 4 23 8 24 15 33 8 48 22 14 47 Peak Tracking Total 16 | . 5 2 6 4 7 4 9 8 2 6 . 4 4 4 1 9 . 5 9 . 5 16 5 2 5 5 2 6 4 5 5 9 4 5 Tactical Retreats 20 | . . . 3 . . 1 1 4 . 1 . . 1 1 . 2 . . 1 . . 1 . . . . . . 1 . 3 . . . Traps | -11 -10 -10 -10 -8 -8 -8 -8 -8 -7 -7 -7 -7 -6 -6 -6 -6 -6 -6 -5 -5 -5 -5 -4 -4 -4 -4 -4 -4 -4 -3 -3 -2 -1 -1 ------- Run | Yrd Mat Min Sub Mat Gar Mat Gar Mat Fac Gar Fac DSF Fac Gar Fac Gar Fac DSF Fac Upp Upp War Pro Fac Ext Cet Arc Hub Gar Res Tes Res Acc Com Traps Triggered 47 | . 1 . 2 . 5 . 5 . 2 9 . 2 1 4 . 5 . . . . . . . . . . . 2 5 . 2 . 2 . Indirectly 3 | . . . . . . . 2 . . . . . . 1 . . . . . . . . . . . . . . . . . . . . Trap Hack Attempts . | . . . . . . . . . . . . . . . . . . . . . . . . . . . . . . . . . . . Triggered . | . . . . . . . . . . . . . . . . . . . . . . . . . . . . . . . . . . . Disarmed . | . . . . . . . . . . . . . . . . . . . . . . . . . . . . . . . . . . . Reprogrammed . | . . . . . . . . . . . . . . . . . . . . . . . . . . . . . . . . . . . Reused 1 | . . . 1 . . . . . . . . . . . . . . . . . . . . . . . . . . . . . . . Traps Extracted . | . . . . . . . . . . . . . . . . . . . . . . . . . . . . . . . . . . . Installed 1 | . . . 1 . . . . . . . . . . . . . . . . . . . . . . . . . . . . . . . Triggered . | . . . . . . . . . . . . . . . . . . . . . . . . . . . . . . . . . . . Most Traps Carried 1 | . . . 1 . . . . . . . . . . . . . . . . . . . . . . . . . . . . . . . Machines | -11 -10 -10 -10 -8 -8 -8 -8 -8 -7 -7 -7 -7 -6 -6 -6 -6 -6 -6 -5 -5 -5 -5 -4 -4 -4 -4 -4 -4 -4 -3 -3 -2 -1 -1 ---------- Run | Yrd Mat Min Sub Mat Gar Mat Gar Mat Fac Gar Fac DSF Fac Gar Fac Gar Fac DSF Fac Upp Upp War Pro Fac Ext Cet Arc Hub Gar Res Tes Res Acc Com Machines Disabled 125 | . 1 . 3 . 9 . 13 3 5 5 . . 14 3 3 18 . . 6 . 1 1 1 5 2 . 6 3 8 . 9 . 1 5 Max in Single Turn 3 | . 1 . 2 . 2 . 1 2 2 1 . . 3 1 1 1 . . 1 . 1 1 . 1 1 . 1 1 2 . 1 . 1 2 Garrison Access 4 | . . . . . . . . . . . . . . . . . . . . . . . . . . . . . . . . 3 1 . Garrison Relay 31 | . . . . . 5 . 8 . . 4 . . . 2 . 8 . . . . . . . . . . . . 4 . . . . . Phase Generator 4 | . . . . . 1 . . . . . . . . . . 1 . . . . . . . . . . . . 1 . . . . 1 Network Hub 1 | . . . . . . . . . . . . . . . . . . . . . . . . . . . . 1 . . . . . . Energy Cycler 2 | . . . . . . . . . . . . . . . . . . . . . . . . . 1 . . . . . . . 1 . Machines Repaired 2 | . . . . . . . . . 1 . . . . . . . . . . . . . . 1 . . . . . . . . . . Machines Dismantled . | . . . . . . . . . . . . . . . . . . . . . . . . . . . . . . . . . . . Machines Sabotaged . | . . . . . . . . . . . . . . . . . . . . . . . . . . . . . . . . . . . Overloaded Fab Kills . | . . . . . . . . . . . . . . . . . . . . . . . . . . . . . . . . . . . Hacking | -11 -10 -10 -10 -8 -8 -8 -8 -8 -7 -7 -7 -7 -6 -6 -6 -6 -6 -6 -5 -5 -5 -5 -4 -4 -4 -4 -4 -4 -4 -3 -3 -2 -1 -1 --------- Run | Yrd Mat Min Sub Mat Gar Mat Gar Mat Fac Gar Fac DSF Fac Gar Fac Gar Fac DSF Fac Upp Upp War Pro Fac Ext Cet Arc Hub Gar Res Tes Res Acc Com Machines Accessed 106 | . 6 . 1 2 2 1 2 5 18 3 1 . 4 . 8 2 1 . 9 . 3 7 . 3 3 . . 4 3 5 8 3 1 1 Terminals 54 | . 4 . . 1 2 . 2 3 7 3 1 . . . 3 2 1 . 5 . . . . 2 3 . . 3 3 2 5 1 . 1 Fabricators 10 | . . . . . . . . . 3 . . . . . 3 . . . 2 . . . . 1 . . . . . 1 . . . . Repair Stations 5 | . 1 . . . . . . . 2 . . . 2 . . . . . . . . . . . . . . . . . . . . . Recycling Units 7 | . 1 . . . . . . . 2 . . . 1 . . . . . 1 . . . . . . . . . . 1 . 1 . . Scanalyzers 9 | . . . . . . . . 2 2 . . . . . 1 . . . 1 . . . . . . . . . . 1 2 . . . Garrison Access 10 | . . . . 1 . 1 . . 2 . . . 1 . 1 . . . . . . . . . . . . 1 . . 1 1 1 . Total Hacks 287 | . 15 . 1 5 6 3 3 13 52 6 3 . 9 . 23 7 1 . 16 . 8 16 . 8 5 . . 27 9 16 26 5 1 3 Successful 139 | . 5 . 1 2 3 1 1 6 23 1 1 . 6 . 17 3 1 . 5 . 8 16 . 6 1 . . 15 4 5 4 2 1 1 Failed 145 | . 10 . . 3 3 2 2 6 28 5 2 . 3 . 6 4 . . 11 . . . . 2 4 . . 12 5 10 22 3 . 2 Catastrophic 36 | . 3 . . 1 2 . . 2 6 1 . . 1 . . 1 . . 3 . . . . . 2 . . 1 1 3 7 2 . . Database Lockouts 3 | . . . . . . . . 1 1 . . . . . . . . . . . . . . . . . . . . 1 . . . . Manual 111 | . 12 . . 2 4 . 1 2 20 1 . . 4 . 8 6 . . 10 . . . . 4 1 . . 14 7 8 . 4 1 2 Terminals 150 | . 11 . . 2 6 . 3 7 20 6 3 . . . 7 7 1 . 7 . . . . 4 5 . . 21 9 10 16 2 . 3 Fabricators 25 | . . . . . . . . . 8 . . . . . 8 . . . 4 . . . . 4 . . . . . 1 . . . . Repair Stations 8 | . 2 . . . . . . . 3 . . . 3 . . . . . . . . . . . . . . . . . . . . . Recycling Units 20 | . 2 . . . . . . . 5 . . . 5 . . . . . 3 . . . . . . . . . . 3 . 2 . . Scanalyzers 33 | . . . . . . . . 6 9 . . . . . 7 . . . 2 . . . . . . . . . . 2 7 . . . Garrison Access 26 | . . . . 3 . 3 . . 7 . . . 1 . 1 . . . . . . . . . . . . 6 . . 3 1 1 . Terminal Hacks 66 | . 2 . 1 . 1 . 1 2 6 . 1 . . . 3 3 1 . 1 . 8 16 . 2 1 . . 9 4 1 2 . . 1 Record 20 | . . . . . . . . . . . . . . . . . . . . . 6 14 . . . . . . . . . . . . Robot Analysis 2 | . 2 . . . . . . . . . . . . . . . . . . . . . . . . . . . . . . . . . Open Door 4 | . . . . . . . . . . . . . . . . . . . . . 2 2 . . . . . . . . . . . . Open DSF 2 | . . . . . . . . . . . 1 . . . . . 1 . . . . . . . . . . . . . . . . . Branch Access Points 3 | . . . . . . . . . . . . . . . . . . . 1 . . . . 1 . . . . . 1 . . . . Emergency Access Points 4 | . . . . . 1 . . . . . . . . . . 1 . . . . . . . . . . . 1 . . . . . 1 Terminal Index 1 | . . . . . . . . . 1 . . . . . . . . . . . . . . . . . . . . . . . . . Garrison Index 1 | . . . . . . . . . . . . . . . . . . . . . . . . . . . . 1 . . . . . . Alert Level 2 | . . . . . . . . . . . . . . . . . . . . . . . . . 1 . . 1 . . . . . . Unreport Threat 6 | . . . . . . . . . 2 . . . . . 2 . . . . . . . . . . . . . 1 . 1 . . . Locate Traps 6 | . . . . . . . . . 1 . . . . . . . . . . . . . . 1 . . . 3 . . 1 . . . Hauler Manifests 3 | . . . . . . . . 1 1 . . . . . 1 . . . . . . . . . . . . . . . . . . . Registered Components 2 | . . . . . . . . 1 1 . . . . . . . . . . . . . . . . . . . . . . . . . Zone Layout 3 | . . . . . . . . . . . . . . . . . . . . . . . . . . . . 3 . . . . . . Garrison Registry 3 | . . . . . . . 1 . . . . . . . . 1 . . . . . . . . . . . . 1 . . . . . Patrol Navigation 2 | . . . . . . . . . . . . . . . . 1 . . . . . . . . . . . . 1 . . . . . Security Stations 1 | . . . . . . . . . . . . . . . . . . . . . . . . . . . . . 1 . . . . . Proto ID Catalog 1 | . . . 1 . . . . . . . . . . . . . . . . . . . . . . . . . . . . . . . Fabricator Hacks 2 | . . . . . . . . . . . . . . . 1 . . . . . . . . 1 . . . . . . . . . . Network Status 2 | . . . . . . . . . . . . . . . 1 . . . . . . . . 1 . . . . . . . . . . Repair Station Hacks 7 | . 2 . . . . . . . 3 . . . 2 . . . . . . . . . . . . . . . . . . . . . Scan Component 3 | . 1 . . . . . . . 1 . . . 1 . . . . . . . . . . . . . . . . . . . . . Repair 3 | . 1 . . . . . . . 1 . . . 1 . . . . . . . . . . . . . . . . . . . . . Refit 1 | . . . . . . . . . 1 . . . . . . . . . . . . . . . . . . . . . . . . . Recycling Unit Hacks 3 | . 1 . . . . . . . . . . . 1 . . . . . . . . . . . . . . . . 1 . . . . Retrieve Matter 1 | . . . . . . . . . . . . . 1 . . . . . . . . . . . . . . . . . . . . . Retrieve Components 2 | . 1 . . . . . . . . . . . . . . . . . . . . . . . . . . . . 1 . . . . Scanalyzer 18 | . . . . . . . . 3 5 . . . . . 7 . . . . . . . . . . . . . . 1 2 . . . Insert Component 1 | . . . . . . . . . 1 . . . . . . . . . . . . . . . . . . . . . . . . . Analyze 1 | . . . . . . . . . 1 . . . . . . . . . . . . . . . . . . . . . . . . . Retrieve Study 16 | . . . . . . . . 3 3 . . . . . 7 . . . . . . . . . . . . . . 1 2 . . . Garrison Access Hacks 7 | . . . . 1 . 1 . . 1 . . . 1 . 1 . . . . . . . . . . . . 1 . . . 1 . . Unlock Access 6 | . . . . 1 . 1 . . 1 . . . 1 . 1 . . . . . . . . . . . . 1 . . . . . . Seal Access 1 | . . . . . . . . . . . . . . . . . . . . . . . . . . . . . . . . 1 . . Unauthorized Hacks 36 | . . . . 1 2 . . 1 8 1 . . 2 . 5 . . . 4 . . . . 3 . . . 5 . 2 . 1 1 . Terminals 17 | . . . . 1 2 . . 1 6 1 . . . . 1 . . . . . . . . . . . . 5 . . . . . . Track 1 | . . . . . . . . . . . . . . . . . . . . . . . . . . . . 1 . . . . . . Assimilate 2 | . . . . . . . . . 1 . . . . . . . . . . . . . . . . . . 1 . . . . . . Botnet 8 | . . . . 1 2 . . 1 . 1 . . . . 1 . . . . . . . . . . . . 2 . . . . . . Operators 1 | . . . . . . . . . . . . . . . . . . . . . . . . . . . . 1 . . . . . . Skim 5 | . . . . . . . . . 5 . . . . . . . . . . . . . . . . . . . . . . . . . Fabricators 11 | . . . . . . . . . 2 . . . . . 4 . . . 2 . . . . 3 . . . . . . . . . . Report 2 | . . . . . . . . . . . . . . . 1 . . . . . . . . 1 . . . . . . . . . . Liberate 4 | . . . . . . . . . . . . . . . 2 . . . 1 . . . . 1 . . . . . . . . . . Haulers 5 | . . . . . . . . . 2 . . . . . 1 . . . 1 . . . . 1 . . . . . . . . . . Repair Stations . | . . . . . . . . . . . . . . . . . . . . . . . . . . . . . . . . . . . Recycling Units 7 | . . . . . . . . . . . . . 2 . . . . . 2 . . . . . . . . . . 2 . 1 . . Monitor 3 | . . . . . . . . . . . . . 1 . . . . . 1 . . . . . . . . . . 1 . . . . Recyclers 4 | . . . . . . . . . . . . . 1 . . . . . 1 . . . . . . . . . . 1 . 1 . . Scanalyzers . | . . . . . . . . . . . . . . . . . . . . . . . . . . . . . . . . . . . Garrison Access 1 | . . . . . . . . . . . . . . . . . . . . . . . . . . . . . . . . . 1 . Jam 1 | . . . . . . . . . . . . . . . . . . . . . . . . . . . . . . . . . 1 . Data Cores Recovered 3 | . . . . . . . . 1 . . . . . . 1 . . . . . . . . . . . . . . . 1 . . . Used 1 | . . . . . . . . . . . . . . . 1 . . . . . . . . . . . . . . . . . . . Hacking Detections 72 | . 5 . . 2 2 1 2 3 15 3 1 . 3 . 5 2 1 . 7 . . . . 1 2 . . 4 . 3 8 1 . 1 Full Trace Events 7 | . 1 . . . . 1 . . 1 1 1 . . . . . . . 1 . . . . . . . . . . 1 . . . . Feedback Events . | . . . . . . . . . . . . . . . . . . . . . . . . . . . . . . . . . . . Feedback Blocked . | . . . . . . . . . . . . . . . . . . . . . . . . . . . . . . . . . . . Robot Schematics Acquired . | . . . . . . . . . . . . . . . . . . . . . . . . . . . . . . . . . . . Robots Built . | . . . . . . . . . . . . . . . . . . . . . . . . . . . . . . . . . . . Authchips . | . . . . . . . . . . . . . . . . . . . . . . . . . . . . . . . . . . . Time . | . . . . . . . . . . . . . . . . . . . . . . . . . . . . . . . . . . . Total Robot Build Rating . | . . . . . . . . . . . . . . . . . . . . . . . . . . . . . . . . . . . Part Schematics Acquired 1 | . . . . . . . . . 1 . . . . . . . . . . . . . . . . . . . . . . . . . Parts Built . | . . . . . . . . . . . . . . . . . . . . . . . . . . . . . . . . . . . Authchips . | . . . . . . . . . . . . . . . . . . . . . . . . . . . . . . . . . . . Time . | . . . . . . . . . . . . . . . . . . . . . . . . . . . . . . . . . . . Total Part Build Rating . | . . . . . . . . . . . . . . . . . . . . . . . . . . . . . . . . . . . Part Studies Acquired 16 | . . . . . . . . 3 3 . . . . . 7 . . . . . . . . . . . . . . 1 2 . . . Parts Repaired 3 | . 1 . . . . . . . 1 . . . 1 . . . . . . . . . . . . . . . . . . . . . Time 82 | . 26 . . . . . . . 12 . . . 44 . . . . . . . . . . . . . . . . . . . . . Parts Recycled . | . . . . . . . . . . . . . . . . . . . . . . . . . . . . . . . . . . . Recycled Matter . | . . . . . . . . . . . . . . . . . . . . . . . . . . . . . . . . . . . Retrieved Matter . | . . . . . . . . . . . . . . . . . . . . . . . . . . . . . . . . . . . Retrieved Components 13 | . 10 . . . . . . . . . . . . . . . . . . . . . . . . . . . . 3 . . . . Parts Scanalyzed 1 | . . . . . . . . . 1 . . . . . . . . . . . . . . . . . . . . . . . . . Part Schematics Acquired 1 | . . . . . . . . . 1 . . . . . . . . . . . . . . . . . . . . . . . . . Parts Damaged . | . . . . . . . . . . . . . . . . . . . . . . . . . . . . . . . . . . . Bothacking | -11 -10 -10 -10 -8 -8 -8 -8 -8 -7 -7 -7 -7 -6 -6 -6 -6 -6 -6 -5 -5 -5 -5 -4 -4 -4 -4 -4 -4 -4 -3 -3 -2 -1 -1 ------------ Run | Yrd Mat Min Sub Mat Gar Mat Gar Mat Fac Gar Fac DSF Fac Gar Fac Gar Fac DSF Fac Upp Upp War Pro Fac Ext Cet Arc Hub Gar Res Tes Res Acc Com Used RIF Installer . | . . . . . . . . . . . . . . . . . . . . . . . . . . . . . . . . . . . Robots Hacked 4 | . . . . . . . . . . . . . 1 . . . . . 1 . . 1 . 1 . . . . . . . . . . Non-combat 4 | . . . . . . . . . . . . . 1 . . . . . 1 . . 1 . 1 . . . . . . . . . . Combat . | . . . . . . . . . . . . . . . . . . . . . . . . . . . . . . . . . . . Robot Hacks Applied 5 | . . . . . . . . . . . . . 1 . . . . . 1 . . 2 . 1 . . . . . . . . . . parse_system 2 | . . . . . . . . . . . . . . . . . . . . . . 2 . . . . . . . . . . . . find_chute 3 | . . . . . . . . . . . . . 1 . . . . . 1 . . . . 1 . . . . . . . . . . Relay Couplers Released 125 | . . . . . 17 . 30 . . 14 . . . 10 3 32 . . . . . . . . . . . . 18 . . 1 . . Machine Destruction 122 | . . . . . 17 . 30 . . 14 . . . 10 . 32 . . . . . . . . . . . . 18 . . 1 . . Programmers 3 | . . . . . . . . . . . . . . . 3 . . . . . . . . . . . . . . . . . . . Fabnet Peak Effective % . | . . . . . . . . . . . . . . . . . . . . . . . . . . . . . . . . . . . Robots Rewired 25 | . . . . . 6 . . . . 8 . . . . . 2 . . . . . 5 1 . 3 . . . . . . . . . Allies Hacked 2 | . . . . . . . . . . . . . . . 2 . . . . . . . . . . . . . . . . . . . Hacks Repelled . | . . . . . . . . . . . . . . . . . . . . . . . . . . . . . . . . . . . Allies | -11 -10 -10 -10 -8 -8 -8 -8 -8 -7 -7 -7 -7 -6 -6 -6 -6 -6 -6 -5 -5 -5 -5 -4 -4 -4 -4 -4 -4 -4 -3 -3 -2 -1 -1 -------- Run | Yrd Mat Min Sub Mat Gar Mat Gar Mat Fac Gar Fac DSF Fac Gar Fac Gar Fac DSF Fac Upp Upp War Pro Fac Ext Cet Arc Hub Gar Res Tes Res Acc Com Total Allies 64 | . . 3 1 . 6 . . 4 . 11 . . . 3 5 3 . . 5 . . 6 2 . 6 1 . . 2 . . . . 6 Largest Group 8 | . . 3 3 . 5 . . 4 . 8 8 8 2 3 6 1 1 1 3 1 . 5 5 4 4 5 5 3 1 . . . . 3 Highest-Rated Group 349 | . . 40 90 . 55 . . 64 . 336 336 336 129 63 231 119 110 110 110 110 . 280 349 224 234 296 282 204 116 . . . . 330 Highest-Rated Ally 119 | . . 16 90 . 15 . . 16 . 95 95 95 90 21 42 119 110 110 110 110 . 93 110 78 85 97 97 89 116 . . . . 110 Initial Warlord ECA Mod 75 | . . . . . . 10 10 22 21 21 29 29 38 38 42 42 57 57 66 66 66 66 65 65 65 65 65 65 65 75 75 74 73 73 Total Orders 26 | . . . . . . . . . . . . . . . . . . 5 . . . 8 1 . . 3 1 2 . 2 . . . 4 STAY 9 | . . . . . . . . . . . . . . . . . . 2 . . . 2 . . . 2 1 1 . 1 . . . . ROAM 1 | . . . . . . . . . . . . . . . . . . 1 . . . . . . . . . . . . . . . . FOLLOW 5 | . . . . . . . . . . . . . . . . . . 2 . . . 1 . . . 1 . 1 . . . . . . AID 1 | . . . . . . . . . . . . . . . . . . . . . . . 1 . . . . . . . . . . . EXPLORE 5 | . . . . . . . . . . . . . . . . . . . . . . 3 . . . . . . . . . . . 2 RETURN 5 | . . . . . . . . . . . . . . . . . . . . . . 2 . . . . . . . 1 . . . 2 Ally Attacks 613 | . . 12 15 . 13 . . 34 . 61 . 55 15 20 25 22 . 8 78 . . 27 42 13 13 27 27 22 8 . . . . 76 Total Damage 17367 | . . 85 221 . 214 . . 387 . 2084 . 1305 750 392 676 1165 . 391 1863 . . 1389 1768 494 546 834 913 405 367 . . . . 1118 Kills 115 | . . 2 5 . 5 . . 1 . 20 . 8 4 2 5 8 . 2 11 . . 5 11 2 4 6 3 2 2 . . . . 7 Allies Corrupted 5 | . . . . . . . . . . 1 . . . . . . . . . . . . . . . . . 1 . . . . . 3 Allies Melted 3 | . . . . . . . . . . . . . . . . . . . . . . 1 . . . . . . . . . 1 . 1 X0-1V1 Amusement Gains 628 | . 20 . . 100 . . . . 33 . . . . . . . . . . 10 7 78 51 7 57 12 9 36 38 . 60 57 9 44 Good Acts 220 | . 1 6 45 8 9 1 8 9 13 16 1 1 5 12 7 15 . 3 10 3 1 1 3 . 3 3 1 1 14 3 7 1 2 7 Bad Acts 132 | . 1 6 43 3 . . . . 1 3 . 2 10 1 . 4 . . 2 . 3 3 3 2 4 4 2 4 6 1 9 5 . 10 Intel | -11 -10 -10 -10 -8 -8 -8 -8 -8 -7 -7 -7 -7 -6 -6 -6 -6 -6 -6 -5 -5 -5 -5 -4 -4 -4 -4 -4 -4 -4 -3 -3 -2 -1 -1 ------- Run | Yrd Mat Min Sub Mat Gar Mat Gar Mat Fac Gar Fac DSF Fac Gar Fac Gar Fac DSF Fac Upp Upp War Pro Fac Ext Cet Arc Hub Gar Res Tes Res Acc Com Active Infowar (turns) 26753 | 62 1728 1008 283 312 1188 . 1157 834 1854 1523 22 408 1020 403 732 239 23 22 688 498 721 1202 451 747 1099 212 49 443 1513 682 1877 1531 591 1631 Optics 4810 | . . . . . . . . 453 . . . . 840 . . 2 . . . . . . . . . 21 . . . . . 1272 591 1631 Sensors 3724 | . . . . . 403 . . . 531 31 22 165 53 . . . 23 22 . . 482 42 . 459 111 . . . . . 902 478 . . A.S.S. 933 | . . . . . . . . . . . . . . . . 1 . . 1 496 239 . . . . . . . . 25 . . . 171 IFF 573 | . . . . . 51 . . . . . . . . 228 294 . . . . . . . . . . . . . . . . . . . Terrain 4077 | . 51 . . 3 170 . . . . . . . . . . . . . . . . 11 . . . . . . 267 679 872 1211 511 302 Structural 652 | . . . . . . . . 115 . . . . 15 . . . . . . . . . . . . . . . . 522 . . . . Seismic 4644 | 62 1677 1008 283 . . . . 44 . . . . . 181 438 . . . 679 9 . . . . . . . . . 263 . . . . Decoding 1257 | . . . . . . . 1157 100 . . . . . . . . . . . . . . . . . . . . . . . . . . Machine Analysis 3761 | . . . . . 18 . . 213 1854 1492 . . 184 . . . . . . . . . . . . . . . . . . . . . Triangulation 147 | . . . . . . . . . . . . . . . . . . . 147 . . . . . . . . . . . . . . . Cloaking 841 | . . . . . 669 . . . 172 . . . . . . . . . . . . . . . . . . . . . . . . . Spoofing 1665 | . . . . . . . . . . . . . . . . . . . . . . 1160 155 . 144 4 . . . . 77 125 . . Jamming 6800 | . . . . . . . . . . 33 . 243 576 . . 236 . . . . . . 448 747 1099 191 49 443 1402 . 834 . 263 236 ECM 312 | . . . . 309 3 . . . . . . . . . . . . . . . . . . . . . . . . . . . . . Robot Analysis Total 2 | . 2 . . . . . . . . . . . . . . . . . . . . . . . . . . . . . . . . . Derelict Logs Recovered 7 | . . 1 2 . . . . . . . . . . . . . . . . . 2 . 2 . . . . . . . . . . . Drone Launches 15 | . . . . . . . . . . . . . . . . . . . . . . 6 . . . . . . . 5 . . . 4 Drone Recoveries 13 | . . . . . . . . . . . . . . . . . . . . . . 6 . . . . . . . 3 . . . 4 Decoded 0b10 Intel 23 | . . . . . . . 21 2 . . . . . . . . . . . . . . . . . . . . . . . . . . Traps 2 | . . . . . . . . 2 . . . . . . . . . . . . . . . . . . . . . . . . . . Items 21 | . . . . . . . 21 . . . . . . . . . . . . . . . . . . . . . . . . . . . Exploration | -11 -10 -10 -10 -8 -8 -8 -8 -8 -7 -7 -7 -7 -6 -6 -6 -6 -6 -6 -5 -5 -5 -5 -4 -4 -4 -4 -4 -4 -4 -3 -3 -2 -1 -1 ------------- Run | Yrd Mat Min Sub Mat Gar Mat Gar Mat Fac Gar Fac DSF Fac Gar Fac Gar Fac DSF Fac Upp Upp War Pro Fac Ext Cet Arc Hub Gar Res Tes Res Acc Com Turns Passed 38994 | 133 1728 1056 3015 693 2753 303 1284 1289 1854 2008 22 408 1429 732 1009 1777 30 288 1337 498 721 1522 1042 747 1099 511 506 443 2054 768 2022 1531 591 1791 Spaces Moved 16802 | 74 853 615 1628 224 635 68 489 399 1061 841 14 183 647 266 531 780 19 116 611 195 326 844 529 362 517 252 210 191 655 271 776 765 238 617 Core 16 | 16 . . . . . . . . . . . . . . . . . . . . . . . . . . . . . . . . . . Treads 1976 | 58 853 615 91 . 267 18 . . . . . . . . . . . . . . . . . . . . . . 73 1 . . . . Legs . | . . . . . . . . . . . . . . . . . . . . . . . . . . . . . . . . . . . Wheels 14810 | . . . 1537 224 368 50 489 399 1061 841 14 183 647 266 531 780 19 116 611 195 326 844 529 362 517 252 210 191 582 270 776 765 238 617 Hover . | . . . . . . . . . . . . . . . . . . . . . . . . . . . . . . . . . . . Flight . | . . . . . . . . . . . . . . . . . . . . . . . . . . . . . . . . . . . Fastest Speed 50 | 50 160 160 150 160 190 245 140 190 120 150 165 125 120 150 145 145 165 135 140 175 175 150 145 160 160 160 160 170 153 175 165 165 205 150 Average Speed 183 | 136 160 160 157 252 374 312 203 235 142 175 165 157 152 204 161 156 165 171 170 250 190 159 176 176 165 183 171 179 198 186 188 181 216 225 Slowest Speed 650 | 160 160 160 240 275 650 480 260 265 195 210 165 270 180 255 255 225 165 180 340 320 320 180 275 185 290 305 175 290 410 410 210 220 240 270 Overloaded Moves . | . . . . . . . . . . . . . . . . . . . . . . . . . . . . . . . . . . . Propulsion Burnouts . | . . . . . . . . . . . . . . . . . . . . . . . . . . . . . . . . . . . Robots Hopped . | . . . . . . . . . . . . . . . . . . . . . . . . . . . . . . . . . . . Potential Cave-ins 3 | . . . . . . . . . . . . . 3 . . . . . . . . . . . . . . . . . . . . . Cave-ins Triggered . | . . . . . . . . . . . . . . . . . . . . . . . . . . . . . . . . . . . Exploration Rate (%) 51 | 3 99 95 61 28 93 11 67 49 35 92 1 96 21 45 18 87 1 88 26 38 52 92 74 10 75 66 86 23 86 12 87 30 13 36 Regions Visited 34 Branch Regions 12 Pre-discovered Areas 4 | . . 1 . . . . . . 2 . . . . . . . . . . 1 . . . . . . . . . . . . . . Known Exits Taken 15 | . . . 1 1 . 1 . . 1 . 1 . 1 . 1 . 1 . 1 1 1 . . 1 . . . 1 . 1 1 . . . Unknown Exits Taken 11 | 1 1 1 . . . . . 1 . . . . . . . . . . . . . 1 1 . 1 1 1 . . . . 1 1 . Scrap Searched 12 | . . 1 8 . . . . . . . . . . . . . . . . 1 . . 2 . . . . . . . . . . . Spaces Dug 513 | . 4 . 15 8 18 2 50 11 14 57 . 6 7 33 8 31 . 20 24 . 22 4 . 4 . . . . 15 15 50 3 69 23 Terrain Destroyed 1881 | . 4 . 73 16 95 4 86 70 16 63 . 17 112 36 12 71 . 59 80 3 40 16 34 16 37 16 29 32 177 17 150 3 103 394 Melee 97 | . . . 6 1 11 2 . 6 13 21 . . 1 6 8 6 . . . . . 1 . . . . . . 3 . 10 1 . 1 Projectile 577 | . 4 . 11 . . 2 . 10 3 14 . 17 45 3 4 19 . 25 33 3 9 9 34 16 12 1 13 8 31 17 8 2 7 217 AOE 1203 | . . . 56 15 84 . 86 54 . 28 . . 66 27 . 44 . 34 47 . 31 6 . . 25 15 16 24 143 . 130 . 96 176 Terrain Rammed . | . . . . . . . . . . . . . . . . . . . . . . . . . . . . . . . . . . . Walls Destroyed . | . . . . . . . . . . . . . . . . . . . . . . . . . . . . . . . . . . . Machines Disabled . | . . . . . . . . . . . . . . . . . . . . . . . . . . . . . . . . . . . Actions | -11 -10 -10 -10 -8 -8 -8 -8 -8 -7 -7 -7 -7 -6 -6 -6 -6 -6 -6 -5 -5 -5 -5 -4 -4 -4 -4 -4 -4 -4 -3 -3 -2 -1 -1 --------- Run | Yrd Mat Min Sub Mat Gar Mat Gar Mat Fac Gar Fac DSF Fac Gar Fac Gar Fac DSF Fac Upp Upp War Pro Fac Ext Cet Arc Hub Gar Res Tes Res Acc Com Total 22303 | 93 1067 655 1945 315 831 123 678 610 1293 1178 13 262 986 398 655 1164 18 178 805 204 386 1003 599 435 688 296 278 271 1171 483 1136 896 307 883 Wait 1267 | . 89 2 107 22 4 6 33 59 50 67 . 4 121 13 17 35 . 10 9 1 4 77 11 4 12 1 6 11 172 104 65 72 2 77 Move 16772 | 73 852 614 1627 224 634 68 488 398 1061 840 13 182 647 265 531 779 18 115 610 194 325 843 528 361 516 251 209 190 654 270 775 764 237 616 Hop . | . . . . . . . . . . . . . . . . . . . . . . . . . . . . . . . . . . . Pick Up 366 | 8 23 4 39 14 13 5 7 20 30 14 . 8 13 3 13 13 . 3 15 1 6 14 4 6 12 9 6 5 21 7 16 8 . 6 Fast Attach 236 | 7 1 3 8 3 6 1 4 10 9 2 . 6 10 1 9 14 . 1 9 2 1 7 7 4 7 4 2 6 15 19 26 14 4 14 Attach 281 | . 1 1 11 6 8 6 3 10 3 3 . 3 27 14 13 34 . 4 20 . 1 5 2 4 8 . 3 11 31 4 13 1 5 26 Detach 236 | . . . 5 3 4 4 5 . 1 1 . 3 26 15 11 33 . 3 17 2 1 3 3 1 3 1 . 8 31 9 14 2 7 20 Swap 385 | . 7 7 24 7 17 4 26 19 34 22 . 1 14 4 7 9 . 5 20 2 4 13 11 13 17 5 5 2 21 16 19 11 7 12 Drop 444 | . 16 8 35 11 13 2 4 18 35 13 . 17 15 1 23 21 . 3 15 1 7 22 1 10 11 13 5 6 27 17 41 17 4 12 Fire 1676 | 5 74 16 77 23 45 15 47 67 24 106 . 29 106 46 13 165 . 34 87 1 37 15 18 27 54 12 42 29 167 36 116 4 41 98 Melee 339 | . . . 9 2 77 12 32 9 40 35 . . 5 11 17 18 . . 1 . . 4 4 . 11 . . . 13 . 35 2 . 2 Ram 2 | . . . . . . . . . . . . . 2 . . . . . . . . . . . . . . . . . . . . . Kick . | . . . . . . . . . . . . . . . . . . . . . . . . . . . . . . . . . . . Crush 4 | . 4 . . . . . . . . . . . . . . . . . . . . . . . . . . . . . . . . . Escape Stasis 184 | . . . . . 10 . 29 . . 54 . 8 . 25 . 26 . . . . . . . . . . . . 16 . 16 . . . Rewire 86 | . . . . . . . . . . 21 . 1 . . 1 16 . . . . . . 10 . 37 . . . . . . . . . Trap 1 | . . . 1 . . . . . . . . . . . . . . . . . . . . . . . . . . . . . . . Miscellaneous 24 | . . . 2 . . . . . 6 . . . . . . 1 . . 2 . . . . 5 . . . 3 3 1 . 1 . . Route ------- -11/Scrapyard -10/Materials (discovered 5 exits: [*Mat x3] / [*Min] / *Sub) -10/Mines (discovered 3 exits: [*Mat x2] / *Sub) -10/Subcaves (discovered 2 exits: *Mat / *Rec) -8/Materials (discovered 2 exits: *Fac / Gar) -8/Garrison (discovered 3 exits: *Mat x3) -8/Materials -8/Garrison (discovered 3 exits: *Mat x3) -8/Materials -7/Factory (discovered 7 exits: *Fac x4 / [*Low x2] / Gar) -7/Garrison (discovered 3 exits: *Fac x3) -7/Factory -7/DSF -6/Factory (discovered 3 exits: *Fac / Low / Gar) -6/Garrison -6/Factory (discovered 2 exits: Low / Gar) -6/Garrison (discovered 3 exits: *Fac x3) -6/Factory -6/DSF -5/Factory (discovered 4 exits: *Fac x2 / *Upp x2) -5/Upper Caves -5/Upper Caves -5/Warlord -4/Proximity Caves -4/Factory (discovered 4 exits: Upp x2 / *Ext x2) -4/Extension (discovered 3 exits: *Res x2 / [*Cet]) -4/Cetus (discovered 2 exits: *Res / [*Arc]) -4/Archives (discovered 3 exits: *Res / *Hub x2) -4/Hub_04(d) (discovered 3 exits: *Res x2 / Gar) -4/Garrison (discovered 3 exits: *Res x3) -3/Research (discovered 3 exits: Arm / *Tes x2) -3/Testing -2/Research -1/Access -1/Command (discovered 2 exits: [*Sur x2]) 0b11 Command History --------- Turn | Location | Event 5 | -11/Scrapyard | Discovered new exit (range 15) 134 | -11/Scrapyard | Entered Materials 313 | -10/Materials | Build established: Mutant 598 | -10/Materials | Discovered new exit (range 16) 769 | -10/Materials | Discovered new exit (range 14) 1000 | -10/Materials | Discovered new exit (range 15) 1221 | -10/Materials | Discovered new exit (range 11) 1287 | -10/Materials | Prayed at D.C.S.S. Altar Unit 1550 | -10/Materials | Repaired Assault Rifle? 1783 | -10/Materials | Discovered new exit (range 6) 1862 | -10/Materials | Entered Mines 1863 | -10/Mines | Learned location of Storage (-7) 1949 | -10/Mines | Learned Materials emergency access door positions 1961 | -10/Mines | Discovered new exit (range 7) 2000 | -10/Mines | Joined a pair of Derelicts in attacking an 0b10 outpost 2026 | -10/Mines | Energy capacity permanently improved by X0-1V1 (+200; -100 max core) 2062 | -10/Mines | Weapon slot count permanently improved by X0-1V1 (+1) 2141 | -10/Mines | Found a hidden stash of uninstalled traps 2145 | -10/Mines | Core integrity permanently improved by X0-1V1 (+200) 2184 | -10/Mines | Destroyed YI-UF0 2208 | -10/Mines | A weapon hastily lodged in a ceiling crevice suddenly fell to the ground 2302 | -10/Mines | Discovered new exit (range 18) 2512 | -10/Mines | Build established: Gunner 2550 | -10/Mines | Discovered new exit (range 6) 2638 | -10/Mines | Assisted by bots powering up and referring to "LRC-V3" 2744 | -10/Mines | X0-1V1 sent you into danger 2757 | -10/Mines | Sensors blinded by X0-1V1 2918 | -10/Mines | Entered Subcaves 2918 | -10/Subcaves | Accompanied by 3 allies 2919 | -10/Subcaves | Approached by a straggling Scientist 2968 | -10/Subcaves | Learned 4 Materials zone layouts 2980 | -10/Subcaves | A swath of the cavern ceiling suddenly collapsed 3201 | -10/Subcaves | X0-1V1 mutated your Utility slot to Propulsion slot 3330 | -10/Subcaves | X0-1V1 rewrote Trooper 1a IFF filter 3336 | -10/Subcaves | Build established: Scavenger-Gunner 3376 | -10/Subcaves | System corruption reached 10% 3400 | -10/Subcaves | Discovered new exit (range 8) 3429 | -10/Subcaves | Identified exit to Recycling 3429 | -10/Subcaves | X0-1V1 revealed exit location to -7/Recycling 4050 | -10/Subcaves | Shifting Twisted Machinery released Sub. Monowheel 4056 | -10/Subcaves | Shifting Twisted Machinery released Sub. Machine Gun 4227 | -10/Subcaves | Core integrity restored by X0-1V1 (+94) 4256 | -10/Subcaves | X0-1V1 activates XOMVISION 4502 | -10/Subcaves | Visited 4L-MR0's lab 4515 | -10/Subcaves | Found Prototype Device 4516 | -10/Subcaves | Core integrity restored by X0-1V1 (+98) 4525 | -10/Subcaves | Found Arachnoskeleton 4540 | -10/Subcaves | Identified exit to Materials 4540 | -10/Subcaves | X0-1V1 revealed exit location to -8/Materials 4634 | -10/Subcaves | A Subdweller sparked back to life 4634 | -10/Subcaves | A Subdweller sparked back to life 4634 | -10/Subcaves | A Subdweller sparked back to life 4654 | -10/Subcaves | Build established: Gunner 4664 | -10/Subcaves | X0-1V1 sent hostile S-10 Pest (x5) 4673 | -10/Subcaves | X0-1V1 sent allied H-61 Shepherd (x1) 4685 | -10/Subcaves | X0-1V1 activates XOMVISION 4714 | -10/Subcaves | X0-1V1 rewrote H-61 Shepherd IFF filter 4717 | -10/Subcaves | Weapon slot count temporarily expanded by X0-1V1 (+4) 4759 | -10/Subcaves | Found Power Bank 4790 | -10/Subcaves | X0-1V1 mutated your Propulsion slot to Weapon slot 4796 | -10/Subcaves | X0-1V1 tapped a No Entrance sign 4897 | -10/Subcaves | X0-1V1 mutated your Weapon slot to Power slot 4977 | -10/Subcaves | X0-1V1 mutated your Weapon slot to Utility slot 5062 | -10/Subcaves | Build established: Executioner 5099 | -10/Subcaves | Shifting Twisted Machinery released Shrapnel Trap 5106 | -10/Subcaves | Shifting Twisted Machinery released Sub. Power Source 5125 | -10/Subcaves | X0-1V1 activates XOMVISION 5147 | -10/Subcaves | X0-1V1 mutated your Propulsion slot to Utility slot 5262 | -10/Subcaves | X0-1V1 rewrote H-61 Shepherd IFF filter 5466 | -10/Subcaves | Build established: Subdweller-Mutant 5831 | -10/Subcaves | Disturbed a concealed Subdweller 5928 | -10/Subcaves | X0-1V1 activates XOMVISION 5933 | -10/Subcaves | Entered Materials 5933 | -8/Materials | Evolved 4 slots: Utility x4 5933 | -8/Materials | Identified Sfc. Transmogrifier 5934 | -8/Materials | X0-1V1 foreshadows a heat wave 5947 | -8/Materials | X0-1V1 released a cloud of subatomizers 5951 | -8/Materials | X0-1V1 sent you to a vault 6005 | -8/Materials | Discovered new exit (range 11) 6282 | -8/Materials | Build established: Mutant 6293 | -8/Materials | Ambient heat levels rising (+10) 6592 | -8/Materials | Sterilization system engaged 6592 | -8/Materials | Non-combat units ordered to evacuate 6626 | -8/Materials | Identified exit to Garrison 6626 | -8/Materials | Entered Garrison 6689 | -8/Garrison | X0-1V1 activates XOMVISION 6711 | -8/Garrison | Triggered checkpoint 6775 | -8/Garrison | Garrison Relay disabled 6808 | -8/Garrison | Phase Generator disabled 6889 | -8/Garrison | Triggered checkpoint 6891 | -8/Garrison | Triggered checkpoint 6944 | -8/Garrison | Destroyed 7 combat bots 7052 | -8/Garrison | Garrison Relay disabled 7081 | -8/Garrison | Identified exit to Materials 7081 | -8/Garrison | X0-1V1 revealed exit location to -8/Materials 7117 | -8/Garrison | X0-1V1 activates XOMVISION 7477 | -8/Garrison | Triggered checkpoint 7504 | -8/Garrison | Triggered checkpoint 7561 | -8/Garrison | Lost 3 allies 7643 | -8/Garrison | Garrison Relay disabled 7710 | -8/Garrison | Triggered checkpoint 7737 | -8/Garrison | X0-1V1 activates XOMVISION 7872 | -8/Garrison | Triggered checkpoint 7923 | -8/Garrison | Triggered checkpoint 8162 | -8/Garrison | Discovered exit to Materials (range 9) 8238 | -8/Garrison | Triggered checkpoint 8287 | -8/Garrison | Garrison Relay disabled 8770 | -8/Garrison | Discovered exit to Materials (range 13) 8880 | -8/Garrison | Triggered checkpoint 9027 | -8/Garrison | Garrison Relay disabled 9379 | -8/Garrison | Entered Materials 9682 | -8/Materials | Identified exit to Garrison 9682 | -8/Materials | Entered Garrison 9712 | -8/Garrison | Triggered checkpoint 9830 | -8/Garrison | Identified exit to Materials 9830 | -8/Garrison | X0-1V1 revealed exit location to -8/Materials 9936 | -8/Garrison | Triggered checkpoint 9938 | -8/Garrison | Destroyed 9 combat bots 9992 | -8/Garrison | System corruption reached 10% 10022 | -8/Garrison | Destroyed 12 combat bots 10028 | -8/Garrison | Lost 3 parts (1p2u) 10048 | -8/Garrison | Triggered checkpoint 10139 | -8/Garrison | Garrison Relay disabled 10161 | -8/Garrison | Discovered exit to Materials (range 19) 10161 | -8/Garrison | Discovered exit to Materials (range 61) 10161 | -8/Garrison | Discovered exit to Materials (range 75) 10315 | -8/Garrison | X0-1V1 activates XOMVISION 10325 | -8/Garrison | Garrison Relay disabled 10327 | -8/Garrison | Garrison Relay disabled 10368 | -8/Garrison | Garrison Relay disabled 10443 | -8/Garrison | Garrison Relay disabled 10500 | -8/Garrison | Triggered checkpoint 10561 | -8/Garrison | Garrison Relay disabled 10680 | -8/Garrison | Triggered checkpoint 10966 | -8/Garrison | Entered Materials 11009 | -8/Materials | X0-1V1 sent allied G-47 Trooper (x4) 11366 | -8/Materials | First assault squad dispatched 11468 | -8/Materials | Lost 4 allies 11534 | -8/Materials | Central database locked down 11543 | -8/Materials | Core integrity restored by X0-1V1 (+162) 12138 | -8/Materials | Lost 3 parts (2p1w) 12229 | -8/Materials | Discovered new exit (range 3) 12253 | -8/Materials | Garrison activated, responded to threat 12255 | -8/Materials | Entered Factory 12255 | -7/Factory | Evolved 2 slots: Propulsion x1, Utility x1 12667 | -7/Factory | Identified exit to Factory 12667 | -7/Factory | X0-1V1 revealed exit location to -6/Factory 13098 | -7/Factory | Discovered new exit (range 18) 13421 | -7/Factory | Learned Extension trap positions 13422 | -7/Factory | Repaired Shock Bomb Launcher 13433 | -7/Factory | X0-1V1 activates XOMVISION 13453 | -7/Factory | Discovered exit to Factory (range 11) 13463 | -7/Factory | Learned location of Upper Caves (-5) 13470 | -7/Factory | Central database locked down 13494 | -7/Factory | Learned location of Extension (-4) 13522 | -7/Factory | Learned Extension security intel 13546 | -7/Factory | Learned Hub_04(d) stockpile data 13675 | -7/Factory | Discovered new exit (range 9) 13991 | -7/Factory | Garrison activated, responded to threat 14035 | -7/Factory | X0-1V1 activates XOMVISION 14109 | -7/Factory | Identified exit to Garrison 14109 | -7/Factory | Entered Garrison 14110 | -7/Garrison | Identified exit to Factory 14237 | -7/Garrison | Triggered checkpoint 14285 | -7/Garrison | Garrison Relay disabled 14387 | -7/Garrison | Triggered checkpoint 14409 | -7/Garrison | X0-1V1 sent allied B-75 Beast (x1) 14418 | -7/Garrison | Build established: Hacker-Mutant 14591 | -7/Garrison | Triggered checkpoint 14610 | -7/Garrison | Garrison Relay disabled 14940 | -7/Garrison | Build established: Mutant 15180 | -7/Garrison | X0-1V1 whisked you away to safety 15197 | -7/Garrison | Triggered checkpoint 15197 | -7/Garrison | Found embedded Infiltrators 15267 | -7/Garrison | Garrison Relay disabled 15289 | -7/Garrison | Triggered checkpoint 15495 | -7/Garrison | Triggered checkpoint 15679 | -7/Garrison | Discovered exit to Factory (range 12) 15853 | -7/Garrison | Triggered checkpoint 15866 | -7/Garrison | Garrison Relay disabled 15941 | -7/Garrison | X0-1V1 activates XOMVISION 16117 | -7/Garrison | Entered Factory 16117 | -7/Factory | Accompanied by 8 allies 16137 | -7/Factory | Identified exit to DSF 16139 | -7/Factory | Entered DSF 16139 | -7/DSF | Accompanied by 8 allies 16181 | -7/DSF | Additional patrols routed to DSF 16200 | -7/DSF | Sensors blinded by X0-1V1 16209 | -7/DSF | Build established: Commander-Mutant 16299 | -7/DSF | Discovered exit to Factory (range 16) 16336 | -7/DSF | Attached Power Bank, gained temporary slots: Power x3 16492 | -7/DSF | Sterilization system engaged 16512 | -7/DSF | Ambient heat levels rising (+10) 16527 | -7/DSF | Ambient heat levels rising (+10) 16542 | -7/DSF | Ambient heat levels rising (+10) 16547 | -7/DSF | Entered Factory 16547 | -6/Factory | Accompanied by 2 allies 16547 | -6/Factory | Evolved 2 slots: Utility x2 16597 | -6/Factory | X0-1V1 activates XOMVISION 16746 | -6/Factory | Discovered new exit (range 19) 16807 | -6/Factory | Build established: Mutant 16897 | -6/Factory | First assault squad dispatched 16909 | -6/Factory | Identified exit to Lower Caves 16909 | -6/Factory | X0-1V1 revealed exit location to -6/Lower Caves 16960 | -6/Factory | X0-1V1 announced a LAN party 16965 | -6/Factory | X0-1V1 sent hostile L-41 Fighter (x3) 16993 | -6/Factory | X0-1V1 sent you into danger 17374 | -6/Factory | Garrison activated, responded to threat 17557 | -6/Factory | X0-1V1 sent hostile X-67 Chaingunner (x3) 17815 | -6/Factory | Repaired Hrd. Heavy Armor Plating? 17976 | -6/Factory | Identified exit to Garrison 17976 | -6/Factory | Entered Garrison 17982 | -6/Garrison | Assembled breached garrison interior 18018 | -6/Garrison | Identified exit to Factory 18018 | -6/Garrison | X0-1V1 revealed exit location to -6/Factory 18036 | -6/Garrison | Build established: Hacker-Mutant 18103 | -6/Garrison | Garrison Relay disabled 18155 | -6/Garrison | X0-1V1 whisked you away to safety 18218 | -6/Garrison | X0-1V1 sent allied H-55 Commando (x3) 18368 | -6/Garrison | Garrison Relay disabled 18526 | -6/Garrison | Build established: Mutant 18604 | -6/Garrison | Destroyed 10 combat bots 18658 | -6/Garrison | X0-1V1 activates XOMVISION 18708 | -6/Garrison | Entered Factory 18708 | -6/Factory | Accompanied by 1 ally 18820 | -6/Factory | X0-1V1 sent you to a vault 18876 | -6/Factory | X0-1V1 revealed exit location to -6/Lower Caves 19282 | -6/Factory | Build established: Hacker-Mutant 19530 | -6/Factory | Found Prototype Launcher 19530 | -6/Factory | Identified Rocket Array 19536 | -6/Factory | Found Rocket Array 19717 | -6/Factory | Identified exit to Garrison 19717 | -6/Factory | Entered Garrison 19864 | -6/Garrison | Identified exit to Factory 19864 | -6/Garrison | X0-1V1 revealed exit location to -6/Factory 19927 | -6/Garrison | Destroyed 7 combat bots 19971 | -6/Garrison | Garrison Relay disabled 20054 | -6/Garrison | Discovered exit to Factory (range 53) 20054 | -6/Garrison | Discovered exit to Factory (range 31) 20054 | -6/Garrison | Discovered exit to Factory (range 58) 20102 | -6/Garrison | Spotted Striker 20116 | -6/Garrison | Destroyed Striker 20178 | -6/Garrison | Rewired Executioner 20266 | -6/Garrison | Triggered checkpoint 20272 | -6/Garrison | X0-1V1 sent allied Knight (x1) 20296 | -6/Garrison | Core integrity restored by X0-1V1 (+248) 20299 | -6/Garrison | Found Prototype Processor 20299 | -6/Garrison | Identified Exp. Targeting Computer 20315 | -6/Garrison | Found Prototype Processor 20315 | -6/Garrison | Identified Exp. Core Analyzer 20322 | -6/Garrison | Found Prototype Device 20322 | -6/Garrison | Identified Adv. Kinecellerator 20412 | -6/Garrison | X0-1V1 destroyed Phase Generator 20412 | -6/Garrison | Phase Generator disabled 20412 | -6/Garrison | Spotted B-75 Beast 20431 | -6/Garrison | Allies destroyed B-75 Beast 20592 | -6/Garrison | Garrison Relay disabled 20716 | -6/Garrison | Triggered checkpoint 20726 | -6/Garrison | X0-1V1 whisked you away to safety 20938 | -6/Garrison | Garrison Relay disabled 20940 | -6/Garrison | Garrison Relay disabled 20941 | -6/Garrison | Garrison Relay disabled 20944 | -6/Garrison | Garrison Relay disabled 21026 | -6/Garrison | Garrison Relay disabled 21051 | -6/Garrison | Triggered checkpoint 21294 | -6/Garrison | Garrison Relay disabled 21343 | -6/Garrison | Spotted B-75 Beast 21379 | -6/Garrison | Destroyed B-75 Beast 21398 | -6/Garrison | Rewired B-86 Titan 21415 | -6/Garrison | Found Hvy. Reflective Plating 21416 | -6/Garrison | X0-1V1 sent hostile B-60 Warrior (x4) 21494 | -6/Garrison | Entered Factory 21494 | -6/Factory | Accompanied by 1 ally 21523 | -6/Factory | Identified exit to DSF 21524 | -6/Factory | Entered DSF 21524 | -6/DSF | Accompanied by 1 ally 21532 | -6/DSF | X0-1V1 activates XOMVISION 21536 | -6/DSF | Additional patrols routed to DSF 21699 | -6/DSF | Sterilization system engaged 21719 | -6/DSF | Ambient heat levels rising (+10) 21734 | -6/DSF | Ambient heat levels rising (+10) 21749 | -6/DSF | Ambient heat levels rising (+10) 21764 | -6/DSF | Ambient heat levels rising (+10) 21767 | -6/DSF | Discovered new exit (range 15) 21779 | -6/DSF | Ambient heat levels rising (+10) 21794 | -6/DSF | Ambient heat levels rising (+10) 21809 | -6/DSF | Ambient heat levels rising (+10) 21812 | -6/DSF | Entered Factory 21812 | -5/Factory | Accompanied by 1 ally 21812 | -5/Factory | Evolved 2 slots: Power x1, Utility x1 22094 | -5/Factory | Discovered new exit (range 15) 22251 | -5/Factory | Build established: Skirmisher 22368 | -5/Factory | Garrison activated, responded to threat 22460 | -5/Factory | Lost 4 parts (1p2n1u) 22481 | -5/Factory | X0-1V1 sent allied Thug (x4) 22509 | -5/Factory | Destroyed 11 combat bots 22629 | -5/Factory | Identified exit to Upper Caves 22663 | -5/Factory | Lost 3 allies 22763 | -5/Factory | Build established: Mutant 22830 | -5/Factory | Discovered new exit (range 14) 22960 | -5/Factory | X0-1V1 sent allied Lightning (x1) 23149 | -5/Factory | Entered Upper Caves 23149 | -5/Upper Caves | Accompanied by 1 ally 23156 | -5/Upper Caves | Met a Warlord Commander 23157 | -5/Upper Caves | Learned location of Warlord (-5) 23158 | -5/Upper Caves | Warlord Commander delivered Encrypted Comm Array 23158 | -5/Upper Caves | Found Encrypted Comm Array 23279 | -5/Upper Caves | Build established: Scavenger-Skirmisher 23551 | -5/Upper Caves | Discovered new exit (range 13) 23638 | -5/Upper Caves | Identified exit to Upper Caves 23647 | -5/Upper Caves | Entered another Upper Caves area 23649 | -5/Upper Caves | Attracted the attention of an 0b10 checkpoint 23846 | -5/Upper Caves | Found Botcube 23877 | -5/Upper Caves | Encountered a Warlord checkpoint 23882 | -5/Upper Caves | Learned Factory stockpile data 23897 | -5/Upper Caves | Identified exit to Warlord 23933 | -5/Upper Caves | Entered an active Warlord outpost 23958 | -5/Upper Caves | Learned Research garrison access intel 23958 | -5/Upper Caves | Learned Factory garrison access intel 23958 | -5/Upper Caves | Learned Research stockpile data 24002 | -5/Upper Caves | Destroyed M4-XYF(g) 24101 | -5/Upper Caves | X0-1V1 activates XOMVISION 24183 | -5/Upper Caves | Build established: Mutant 24237 | -5/Upper Caves | System corruption reached 10% 24368 | -5/Upper Caves | Entered Warlord 24426 | -5/Warlord | System corruption cleaned by Quarantine Array 24504 | -5/Warlord | Learned Research fabricator intel 24504 | -5/Warlord | Learned Research terminal intel 24504 | -5/Warlord | Learned Factory terminal intel 24505 | -5/Warlord | Learned 4 Access zone layouts 24505 | -5/Warlord | Learned 4 Research zone layouts 24507 | -5/Warlord | Learned Armory trap positions 24907 | -5/Warlord | Found Prototype Reactor 24907 | -5/Warlord | Identified Vortex Chain Reactor 24915 | -5/Warlord | Found Prototype Device 24915 | -5/Warlord | Identified Exp. Focal Shield 24918 | -5/Warlord | Discovered new exit (range 59) 25070 | -5/Warlord | Build established: Commander-Mutant 25120 | -5/Warlord | Met Warlord 25145 | -5/Warlord | Warlord's base attacked by MAIN.C 25240 | -5/Warlord | Found Prototype Energy Gun 25240 | -5/Warlord | Identified Vortex Rail 25243 | -5/Warlord | Found Vortex Rail 25248 | -5/Warlord | Found Vortex Rail 25252 | -5/Warlord | Found Vortex Rail 25495 | -5/Warlord | Warlord forces counterattacked 25499 | -5/Warlord | Spotted B-86 Titan 25590 | -5/Warlord | Botcube activated 25667 | -5/Warlord | Attached CPS modules to *Xom's mascot 25820 | -5/Warlord | Warlord base infiltrated, sounded retreat 25829 | -5/Warlord | Opened side exit 25861 | -5/Warlord | Spotted Executioner 25861 | -5/Warlord | Spotted Striker 25864 | -5/Warlord | Spotted Striker 25890 | -5/Warlord | Entered Proximity Caves 25890 | -4/Proximity Caves | Accompanied by 4 allies 26004 | -4/Proximity Caves | Spotted B-86 Titan 26004 | -4/Proximity Caves | X0-1V1 sent you into danger 26049 | -4/Proximity Caves | Destroyed B-86 Titan 26243 | -4/Proximity Caves | Learned Research stockpile data 26398 | -4/Proximity Caves | Forcibly received Sfc. Transmogifier from X0-1V1 26668 | -4/Proximity Caves | X0-1V1 sent hostile X-72 Disruptor (x2) 26845 | -4/Proximity Caves | Attracted the attention of an 0b10 checkpoint 26863 | -4/Proximity Caves | Discovered new exit (range 5) 26932 | -4/Proximity Caves | Entered Factory 26932 | -4/Factory | Accompanied by 4 allies 26932 | -4/Factory | Evolved 2 slots: Utility x2 26934 | -4/Factory | Loaded intel: 28 terminal locations 26935 | -4/Factory | Loaded intel: 4 garrison access locations 27006 | -4/Factory | Found Quantum Capacitor 27289 | -4/Factory | X0-1V1 announced a LAN party 27411 | -4/Factory | Identified exit to Upper Caves 27411 | -4/Factory | Identified exit to Extension 27601 | -4/Factory | Watched by a mysterious "MATRIX" hacker 27679 | -4/Factory | Entered Extension 27679 | -4/Extension | Accompanied by 3 allies 27680 | -4/Extension | Loaded intel: 16 trap records 27685 | -4/Extension | X0-1V1 dreamt of freedom 27685 | -4/Extension | Rescued a captive Derelict 27688 | -4/Extension | Rescued a captive Derelict 27690 | -4/Extension | Rescued a captive Derelict 27693 | -4/Extension | Rescued a captive Derelict 27694 | -4/Extension | Rescued a captive Derelict 27696 | -4/Extension | Rescued a captive Derelict 27698 | -4/Extension | Rescued a captive Derelict 27717 | -4/Extension | Destroyed *Xom's mascot 27739 | -4/Extension | Rescued a captive Derelict 27743 | -4/Extension | Found Botcube 27887 | -4/Extension | Disrupted transfer network 28032 | -4/Extension | Build established: Scavenger-Mutant 28096 | -4/Extension | Discovered new exit (range 14) 28096 | -4/Extension | Spotted B-86 Titan 28096 | -4/Extension | Spotted B-86 Titan 28096 | -4/Extension | X0-1V1 sent you into danger 28128 | -4/Extension | X0-1V1 downgraded hostiles (x2) 28131 | -4/Extension | Spotted B-75 Beast 28141 | -4/Extension | Spotted B-75 Beast 28191 | -4/Extension | Destroyed B-75 Beast 28207 | -4/Extension | Destroyed B-75 Beast 28231 | -4/Extension | Lost 3 parts (1p1n1u) 28698 | -4/Extension | Discovered new exit (range 10) 28700 | -4/Extension | Discovered new exit (range 6) 28705 | -4/Extension | Extracted ID and sensor layout for unrecognized location from A7's data core 28778 | -4/Extension | Entered Cetus 28778 | -4/Cetus | Accompanied by 4 allies 28783 | -4/Cetus | X0-1V1 activates XOMVISION 28803 | -4/Cetus | Spotted Cetus Guard 28807 | -4/Cetus | Allies destroyed Cetus Guard 28809 | -4/Cetus | Spotted Cetus Guard 28815 | -4/Cetus | Allies destroyed Cetus Guard 28924 | -4/Cetus | Build established: Commander-Mutant 28932 | -4/Cetus | Discovered new exit (range 15) 28978 | -4/Cetus | Spotted Cetus Guard 28978 | -4/Cetus | Spotted Cetus Guard 28978 | -4/Cetus | Spotted Cetus Guard 28980 | -4/Cetus | Spotted Cetus Guard 28985 | -4/Cetus | Destroyed Cetus Guard 28989 | -4/Cetus | Destroyed Cetus Guard 28989 | -4/Cetus | Destroyed Cetus Guard 28990 | -4/Cetus | Destroyed Cetus Guard 29004 | -4/Cetus | Discovered new exit (range 15) 29013 | -4/Cetus | Met Revision 17 29063 | -4/Cetus | Botcube activated 29083 | -4/Cetus | Botcube completed mutation into treaded form, armed with 2 guns. 29122 | -4/Cetus | X0-1V1 rewrote GU-0O5(h) IFF filter 29199 | -4/Cetus | System corruption reached 10% 29213 | -4/Cetus | X0-1V1 sent someone to keep an eye on you 29289 | -4/Cetus | Entered Archives 29289 | -4/Archives | Accompanied by 5 allies 29297 | -4/Archives | Attached CPS modules to *Xom's mascot the 2nd 29360 | -4/Archives | Discovered new exit (range 16) 29527 | -4/Archives | Discovered new exit (range 19) 29679 | -4/Archives | Discovered new exit (range 13) 29795 | -4/Archives | Entered Hub_04(d) 29795 | -4/Hub_04(d) | Accompanied by 3 allies 29851 | -4/Hub_04(d) | Discovered new exit (range 16) 29997 | -4/Hub_04(d) | X0-1V1 announced a LAN party 30009 | -4/Hub_04(d) | Discovered new exit (range 14) 30113 | -4/Hub_04(d) | X0-1V1 destroyed Network Hub 30113 | -4/Hub_04(d) | Network Hub disabled 30119 | -4/Hub_04(d) | Spotted Lightning 30119 | -4/Hub_04(d) | Spotted Lightning 30121 | -4/Hub_04(d) | Attached CPS modules to Lightning 30122 | -4/Hub_04(d) | Spotted Lightning 30139 | -4/Hub_04(d) | Destroyed Lightning 30139 | -4/Hub_04(d) | Destroyed Lightning 30146 | -4/Hub_04(d) | Destroyed Lightning 30150 | -4/Hub_04(d) | Found Botcube 30170 | -4/Hub_04(d) | Found Prototype Energy Cannon 30171 | -4/Hub_04(d) | Identified exit to Garrison 30176 | -4/Hub_04(d) | Found Prototype Device 30238 | -4/Hub_04(d) | Entered Garrison 30268 | -4/Garrison | Identified Exp. EM Shield 30342 | -4/Garrison | Botcube activated 30362 | -4/Garrison | Botcube completed mutation into treaded form, armed with 2 guns. 30401 | -4/Garrison | X0-1V1 sent hostile H-77 Assassin (x3) 30453 | -4/Garrison | Murdered *Xom's mascot the 3rd 30453 | -4/Garrison | Destroyed *Xom's mascot the 3rd 30524 | -4/Garrison | Triggered checkpoint 30586 | -4/Garrison | Garrison Relay disabled 30652 | -4/Garrison | X0-1V1 mutated your Utility slot to Weapon slot 30764 | -4/Garrison | Identified exit to Research 30764 | -4/Garrison | X0-1V1 revealed exit location to -3/Research 30786 | -4/Garrison | Spotted B-86 Titan 30828 | -4/Garrison | X0-1V1 destroyed Phase Generator 30828 | -4/Garrison | Phase Generator disabled 30900 | -4/Garrison | Destroyed B-86 Titan 30943 | -4/Garrison | Build established: Scavenger-Tank 30944 | -4/Garrison | Triggered checkpoint 31026 | -4/Garrison | Identified EMDS 31056 | -4/Garrison | X0-1V1 revealed exit location to -3/Research 31186 | -4/Garrison | Discovered exit to Research (range 12) 31236 | -4/Garrison | System corruption reached 30% 31276 | -4/Garrison | Triggered checkpoint 31285 | -4/Garrison | Discovered exit to Research (range 76) 31285 | -4/Garrison | Discovered exit to Research (range 59) 31285 | -4/Garrison | Discovered exit to Research (range 18) 31462 | -4/Garrison | Triggered checkpoint 31515 | -4/Garrison | Triggered checkpoint 31587 | -4/Garrison | Garrison Relay disabled 31657 | -4/Garrison | Learned Research security intel 31688 | -4/Garrison | Found Scimitar of Distortion 32164 | -4/Garrison | Triggered checkpoint 32288 | -4/Garrison | X0-1V1 activates XOMVISION 32292 | -4/Garrison | Entered Research 32292 | -3/Research | Evolved 2 slots: Utility x2 32293 | -3/Research | Identified exit to Testing 32297 | -3/Research | Loaded intel: 23 terminal locations 32298 | -3/Research | Loaded intel: 4 fabricator locations 32299 | -3/Research | Loaded intel: 4 garrison access locations 32376 | -3/Research | X0-1V1 sent you to a vault 32380 | -3/Research | Found Prototype Device 32380 | -3/Research | Identified Exp. Cloaking Device 32384 | -3/Research | Found Prototype Device 32384 | -3/Research | Identified Imp. Particle Accelerator 32395 | -3/Research | Found Prototype Reactor 32414 | -3/Research | Found Prototype Slashing Weapon 32414 | -3/Research | Identified Hvy. Scimitar of Distortion 32424 | -3/Research | Found Prototype Device 32424 | -3/Research | Identified Exp. Terrain Scanner 32492 | -3/Research | Revision forces began assault on 0b10 32675 | -3/Research | Identified exit to Armory 32806 | -3/Research | Build established: Scavenger-Skirmisher 32883 | -3/Research | Central database locked down 32890 | -3/Research | Met up with Revision 17++ 32992 | -3/Research | Research terminal network offline 33060 | -3/Research | Entered Testing 33086 | -3/Testing | Found Prototype Energy Cannon 33086 | -3/Testing | Identified Disintegrator 33154 | -3/Testing | Destroyed PL-CS0MWK00F7 33415 | -3/Testing | Found Prototype Energy Cannon 33418 | -3/Testing | Found Prototype Energy Cannon 33423 | -3/Testing | Identified Potential Cannon (x2) 33485 | -3/Testing | Spotted Striker 33489 | -3/Testing | Spotted Striker 33522 | -3/Testing | Spotted PG-8IJX0C413G 33537 | -3/Testing | X0-1V1 activates XOMVISION 33542 | -3/Testing | Destroyed PG-8IJX0C413G 33814 | -3/Testing | Build established: Mutant 33822 | -3/Testing | Found Prototype Protection 33822 | -3/Testing | Identified Centrium Heavy Armor Plating 33852 | -3/Testing | Found Exp. Thermal Shield 34276 | -3/Testing | Found Hvy. Regenerative Plating 34283 | -3/Testing | Found Prototype Protection 34283 | -3/Testing | Identified SHELL Armor 34397 | -3/Testing | X0-1V1 activates XOMVISION 34601 | -3/Testing | X0-1V1 upgraded hostiles (x2) 34656 | -3/Testing | X0-1V1 announced a LAN party 34703 | -3/Testing | X0-1V1 upgraded hostiles (x1) 34938 | -3/Testing | X0-1V1 upgraded hostiles (x2) 34952 | -3/Testing | System corruption reached 10% 35003 | -3/Testing | Destroyed 8 combat bots 35027 | -3/Testing | Discovered new exit (range 16) 35060 | -3/Testing | First assault squad dispatched 35080 | -3/Testing | Identified exit to Research 35082 | -3/Testing | Entered Research 35082 | -2/Research | Warlord forces began assault on 0b10 35082 | -2/Research | Evolved 2 slots: Power x1, Utility x1 35107 | -2/Research | Distinguished unit "Lair Dwellers" dispatched to help 35107 | -2/Research | Distinguished unit "The Professionals" dispatched to help 35192 | -2/Research | Research machine network offline 35347 | -2/Research | Lost 3 allies 35348 | -2/Research | X0-1V1 vaporized surrounding terrain (radius 23) 35370 | -2/Research | Found Exp. Focal Shield 35567 | -2/Research | Discovered new exit (range 16) 35625 | -2/Research | X0-1V1 announced a LAN party 35666 | -2/Research | Met up with Warlord 35752 | -2/Research | Borebot progress halted 35859 | -2/Research | Build established: Generator-Mutant 35859 | -2/Research | X0-1V1 tapped a No Entrance sign 36089 | -2/Research | Discovered new exit (range 16) 36089 | -2/Research | Spotted Striker 36118 | -2/Research | Lost 3 allies 36249 | -2/Research | Found Adv. Powered Armor 36276 | -2/Research | Found Prototype Processor 36276 | -2/Research | Identified Exp. Terrain Scan Processor 36313 | -2/Research | Build established: Generator-Tank 36317 | -2/Research | Found Enh. Gamma Bomb Array 36377 | -2/Research | Found Prototype Launcher 36377 | -2/Research | Identified Hellfire Missile Launcher 36536 | -2/Research | Spotted Striker 36536 | -2/Research | Spotted Executioner 36538 | -2/Research | Spotted Executioner 36538 | -2/Research | Spotted Executioner 36559 | -2/Research | X0-1V1 activates XOMVISION 36585 | -2/Research | Given Cave Seal Controls access code 36613 | -2/Research | Entered Access 36613 | -1/Access | Evolved 2 slots: Power x1, Utility x1 36742 | -1/Access | X0-1V1 destroyed Energy Cycler 36742 | -1/Access | Energy Cycler disabled 36816 | -1/Access | Build established: Generator-Gunner 37113 | -1/Access | First assault squad dispatched 37183 | -1/Access | Discovered new exit (range 10) 37204 | -1/Access | Entered Command 37323 | -1/Command | Destroyed 7 combat bots 37465 | -1/Command | Spotted B-99 Colossus 37472 | -1/Command | X0-1V1 sent allied H-77 Assassin (x3) 37479 | -1/Command | Destroyed B-99 Colossus 37581 | -1/Command | Murdered 3 allies 37758 | -1/Command | Disengaged cave seal 37758 | -1/Command | Derelicts emerged from the dark tunnel 37758 | -1/Command | X0-1V1 sent hostile P-80 Master (x3) 37758 | -1/Command | Welcomed Warlord to Command 37839 | -1/Command | X0-1V1 mutated your Utility slot to Weapon slot 37939 | -1/Command | Phase Generator disabled 37980 | -1/Command | Build established: Generator-Mutant 38045 | -1/Command | Disengaged cave seal 38416 | -1/Command | Found Prototype Ballistic Gun 38436 | -1/Command | X0-1V1 sent hostile G-73 Enforcer (x5) 38460 | -1/Command | Spotted 9I-YRG(L) 38481 | -1/Command | Lost 3 allies 38539 | -1/Command | Spotted M Guard 38539 | -1/Command | Spotted M Guard 38541 | -1/Command | Spotted Combat Programmer 38541 | -1/Command | Spotted Combat Programmer 38556 | -1/Command | Destroyed Combat Programmer 38597 | -1/Command | Warlord commented on Warlord statues 38604 | -1/Command | Destroyed M Guard 38606 | -1/Command | All MAIN.C guards destroyed 38609 | -1/Command | Build established: Generator-Assassin 38641 | -1/Command | Lost 29 allies 38681 | -1/Command | 0b10 Conduit disabled 38689 | -1/Command | System corruption reached 10% 38692 | -1/Command | Met MAIN.C 38694 | -1/Command | Warlord shut down involuntarily 38736 | -1/Command | Destroyed MAIN.C Shell 38739 | -1/Command | MAIN.C activated Command garrisons 38790 | -1/Command | X0-1V1 sent allied Lightning (x3) 38792 | -1/Command | Lost 12 allies 38833 | -1/Command | Destroyed Lightning 38833 | -1/Command | Destroyed MAIN.C 38843 | -1/Command | Lost 4 parts (4u) 38896 | -1/Command | Identified Multirail 38896 | -1/Command | Discovered new exit (range 35) 38896 | -1/Command | Discovered new exit (range 95) 38896 | -1/Command | Extracted map data and part IDs from MAIN.C's data core 38995 | *** | Establishing 0b11! Last Messages --------------- 38939_ EMDS Slug penetrates H-88 Terminator. 38942_ H-88 Terminator system terminally corrupted. 38947_ EMDS Slug penetrates 0b10 Conduit. 38948_ I-47 Archangel system terminally corrupted. 38950_ EMDS Slug penetrates Y-72 Warden. 38950_ Y-72 Warden destroyed. 38955_ System corrupted: Matter fused (-7). 38955_ Acquired 7 matter. 38956_ Slug penetrates Wall. 38956_ EMDS Slug penetrates Wall. 38959_ H-88 Terminator system terminally corrupted. 38960_ EMDS Slug penetrates Reinforced Barrier. 38963_ Hardcell Cannon destroyed. 38965_ Door malfunctions. 38965_ S-43 Plague destroyed. 38966_ Acquired 10 matter. 38967_ Singularity Reactor destroyed. 38971_ LHV/%%BN1:W|6UOHOLVRD 38990_ System corrupted: IFF burst signal emitted. [Achievement: Chaotic Teddy Bear] Map ----- +----------------------------------------------------+ | # # #?# ############?? | | # # ### #?? | | # # + T#?? | | #### # ### ##########* ####"""##?? | | ???# # %= #?# #????????#%! ####"""##?? | | ???# %# * #?# #????????#[ #[[] =#?? | | #### # == #?# #????????# #][] ] =#?? | | # == #?# #????????# #!!! =#?? | | + = ###+########## #!!!**==#?? | | ##### # # # #########?? | | ????# # # # #?????????? | | ????# # # # %! #?????????? | | ????# # # ! # = #?######### | | ?#### # # # %#?#???????? | | ?# + # # #?#?####### | | ##+#### # "" # #?#?#"""""" | | ########### """" + #?#?#"" | | ! #?????????# """" # #?#?#""""" | | ###########%= ] "" ### #?#?#"""""" | | + +== #?# #?#?#" " | | "" ! ###########= #?#[ #?#?#"" "" | | "" #?????????##############?#%= #?#?#"" "" | | T #????????????????######### #?#?# " "" | | "" #????????????????# #?#?# " | | "" ] #????????????????# #?#?# " | | #????????????????# @ ###### #?#?#"""""" | | =#????????????????# #????# #?#?#"" | | ##+####????????????????#####????# #?#?# | | ?# #??????????????????????#######+# [ #?#?# | | ?# #??????????????????????# # !%=##### | | ?# #????????????########### # %[ [ | | ?# #????????????# #"" ! / = % | | ?# #????????????# ! #"" # [ | | ?# #????????????# #"" # ###### """ | | ##+####?????????# #T #! #??#?# " " | | ! =#?????????# ""T"" #"" [ #% #??#?# " | | #?????????# """"" #"" #= #??#?####### | | " ########### #"" # #??#???????? | | " ## ##! # #= #??######### | | " ## ######+##### #%* #??????????? | | ## #??#+#######== #??????????? | | " ## #??# #?????#%= #??????????? | | " ## #??# #?????#[ #??????????? | | " ## //= #??# #?????# #??????????? | | ! ## //= #??# ####### #??????????? | | ## /== #??# ## #??????????? | | #####+## ####+## %= #??????????? | | # ] * # #??????????? | | !# # % #??????????? | | #!!= # % #??????????? | +----------------------------------------------------+ Best States ------------- Heat Dissipation 154 Coolant Potential 200 Energy Generation 125 Energy Capacity 3070 Matter Stores 1000 Matter Capacity 1400 Sight Range 25 Robot Scan Range 20 Terrain Scan Range 30 Terrain Scan Density 1010 ECM Strength 2 Jamming Range 16 Cloak Strength 3 Power Amplification 30 Additional Mass Support 16 Base Temperature (-) 200 EM Shielding 3 Armor Coverage 2400 Resistance: KI 40 Resistance: TH 34 Resistance: EM 75 Core Shielding 30 Propulsion Shielding 66 Utility Shielding 90 Weapon Shielding 90 Point Defense Rating 240 Weapon Cycling 25 Melee Speed Boost 40 Phase Shifting 20 Evasion (%) 60 Targeting Accuracy 20 Melee Accuracy 10 Launcher Accuracy 20 Target Analysis 10 Core Analysis 8 Armor Integrity Analysis 40 Recoil Reduction 8 Matter Filtering 50 Energy Filtering 50 Particle Charging 40 Kinecelleration 50 Salvage Targeting 3 Offensive Hacking 28 Defensive Hacking 48 Authchip Count 3 Item Schematics ----------------- Hrd. Heavy Armor Plating | -7/Factory | Scanalyzed Robot Schematics ------------------ None Fabricated ------------ Nothing Repaired ---------- Assault Rifle | 23% | -10/Materials Shock Bomb Launcher | 49% | -7/Factory Hrd. Heavy Armor Plating | 20% | -6/Factory Studied --------- Wheel | -8/Materials | Hacked Scythe | -8/Materials | Hacked Assault Cannon | -8/Materials | Hacked Arm. Huge Wheel | -7/Factory | Hacked Com. Wheel | -7/Factory | Hacked Gatling Laser | -7/Factory | Hacked Arm. Wheel | -6/Factory | Hacked Lrn. Missile Launcher | -6/Factory | Hacked Shock Bomb Launcher | -6/Factory | Hacked Hvy. Rocket Launcher | -6/Factory | Hacked Chainsword | -6/Factory | Hacked Fission Core | -6/Factory | Hacked Rnf. Deuterium Engine | -6/Factory | Hacked Com. HERF Cannon | -3/Research | Hacked Hyp. Railgun | -3/Testing | Hacked Quantum Reactor | -3/Testing | Hacked Alien Tech Used ----------------- None Achievements -------------- Chaotic Teddy Bear Off Switch Showdown Challenges ------------ None Game ------ Seed AmuletUltimateChargecaster Manual? 0 Play Time 16:08:31 Cumulative 880.7 hours Start 2026.07.01 @ 09:47:07 End 2026.07.06 @ 23:10:30 Sessions 10 Manual Loads 0 Difficulty Rogue Special Mode None Game No. 78 Rogue 75 Adventurer 3 Explorer 0 Win Type 1 Total 32 Types 11/4/7/2/1/1/2/1/2/1 Lore% 90 Gallery% 91 Achievement% 90 Wizard Run 0 Options --------- Layout 0 ASCII 0 Keyboard 0 Movement Numpad Keybinds 0 Fullscreen 1 Font 18/SmallcapsGlow Map View 76x50 Zoom Use 0% Tactical HUD 1 Map Filters NONE Filters NONE Steam 1 RUN: 2c03b33d-f2d5-4ea6-b506-e770a0806099